{"text_format":"1","workbook":"xlsx","n_sheets":4,"sheets":["Кэфы","Выгрузка с сайта","Выгрузка","Вычисления"],"not_rendered":{"charts":0,"images":1,"macros":1,"external_links":0,"defined_names":2,"comments":0,"pivot_tables":0},"unopened":[],"bounds":{"document_bytes":16777216,"sheet_cells":100000,"rows_first":2000,"rows_last":500,"rows_between":2000,"halvings":0,"cell_chars":16384,"cell_head_chars":4096},"cells_cut":0,"cells_raw":0,"read":"whole","date_system":"1900"}

{"sheet":"Кэфы","index":0,"n_rows":25,"n_cols":6,"rows_kept":25,"cut":false,"hidden":false,"merged":[[15,1,18,5]]}
[]
[]
[]
[null,"До следующего обновления цен на рыбу осталось:",null,null,{"$f":"HOUR(TEXT(IF(TEXT(MID(INDEX(Выгрузка!$A:$A,MATCH(\"Последнее изменение цен было в *\",Выгрузка!$A:$A,0),1),32,5)*1+5/24,\"ч:мм\")*1-(NOW()-TODAY())<0, TEXT(MID(INDEX(Выгрузка!$A:$A,MATCH(\"Последнее изменение цен было в *\",Выгрузка!$A:$A,0),1),32,5)*1+5/24,\"ч:мм\")*1-(NOW()-TODAY())+1,TEXT(MID(INDEX(Выгрузка!$A:$A,MATCH(\"Последнее изменение цен было в *\",Выгрузка!$A:$A,0),1),32,5)*1+5/24,\"ч:мм\")*1-(NOW()-TODAY())),\"ч:мм\"))&\"ч \"&MINUTE(TEXT(IF(TEXT(MID(INDEX(Выгрузка!$A:$A,MATCH(\"Последнее изменение цен было в *\",Выгрузка!$A:$A,0),1),32,5)*1+5/24,\"ч:мм\")*1-(NOW()-TODAY())<0, TEXT(MID(INDEX(Выгрузка!$A:$A,MATCH(\"Последнее изменение цен было в *\",Выгрузка!$A:$A,0),1),32,5)*1+5/24,\"ч:мм\")*1-(NOW()-TODAY())+1,TEXT(MID(INDEX(Выгрузка!$A:$A,MATCH(\"Последнее изменение цен было в *\",Выгрузка!$A:$A,0),1),32,5)*1+5/24,\"ч:мм\")*1-(NOW()-TODAY())),\"ч:мм\"))&\"мин\"","v":"1ч 36мин"},"реального времени"]
[]
[null,"Кит","Шт.","Текущий кэф","Макс. кэф","% от макс.*"]
[null,"Кашалот",{"$f":"INDEX(Вычисления!$1:$1048576,MATCH($B7,Вычисления!$A:$A,0)-2,5)","v":339},{"$f":"IF(C7<=10, \"Баг с ценой\", VLOOKUP(B7,Вычисления!$A:$E,5,0))","v":1.0364180984388829},1.0446149106116156,{"$f":"IF(D7=\"Баг с ценой\", \"Не продавай!\",D7/E7)","v":0.99215326902816892}]
[null,"Кит горбатый",{"$f":"INDEX(Вычисления!$1:$1048576,MATCH($B8,Вычисления!$A:$A,0)-2,5)","v":54},{"$f":"IF(C8<=10, \"Баг с ценой\", VLOOKUP(B8,Вычисления!$A:$E,5,0))","v":1.0957664364296154},1.0965083682400059,{"$f":"IF(D8=\"Баг с ценой\", \"Не продавай!\",D8/E8)","v":0.99932336876591155}]
[null,"Кит горбатый-альбинос",{"$f":"INDEX(Вычисления!$1:$1048576,MATCH($B9,Вычисления!$A:$A,0)-2,5)","v":28},{"$f":"IF(C9<=10, \"Баг с ценой\", VLOOKUP(B9,Вычисления!$A:$E,5,0))","v":1.7316695230511308},1.7322076348486417,0.99968934913650931]
[null,"Кит синий северный",{"$f":"INDEX(Вычисления!$1:$1048576,MATCH($B10,Вычисления!$A:$A,0)-2,5)","v":7},{"$f":"IF(C10<=10, \"Баг с ценой\", VLOOKUP(B10,Вычисления!$A:$E,5,0))","v":"Баг с ценой"},1.4433169154018517,"Не продавай!"]
[null,"Кит серый",{"$f":"INDEX(Вычисления!$1:$1048576,MATCH($B11,Вычисления!$A:$A,0)-2,5)","v":8},{"$f":"IF(C11<=10, \"Баг с ценой\", VLOOKUP(B11,Вычисления!$A:$E,5,0))","v":"Баг с ценой"},0.952566527000136,"Не продавай!"]
[null,"Кит японский",{"$f":"INDEX(Вычисления!$1:$1048576,MATCH($B12,Вычисления!$A:$A,0)-2,5)","v":0},{"$f":"IF(C12<=10, \"Баг с ценой\", VLOOKUP(B12,Вычисления!$A:$E,5,0))","v":"Баг с ценой"},2.1655516836404356,"Не продавай!"]
[null,"Сейвал или кит ивасевый",{"$f":"INDEX(Вычисления!$1:$1048576,MATCH($B13,Вычисления!$A:$A,0)-2,5)","v":211},{"$f":"IF(C13<=10, \"Баг с ценой\", VLOOKUP(B13,Вычисления!$A:$E,5,0))","v":0.61311571647253904},0.61385984162205964,0.99878779307739962]
[null,"Финвал",{"$f":"INDEX(Вычисления!$1:$1048576,MATCH($B14,Вычисления!$A:$A,0)-2,5)","v":22845},{"$f":"IF(C14<=10, \"Баг с ценой\", VLOOKUP(B14,Вычисления!$A:$E,5,0))","v":0.21542205841613671},0.92696141974044077,0.23239592698092787]
[]
[null,"* Показывает в %, насколько текущая цена велика в сравнении с максимальной известной мне. Условные обозначения в виде стрелок и соответствующие значения описаны под таблицей. Изучи их и прими решение о продаже самостоятельно или в соответствии с рекомендациями."]
[]
[]
[]
[]
[null,"[98% - 100%] Смело продавай, прекрасная цена"]
[null,"[95% - 98%] Тоже отличная цена, но нередко бывает лучше"]
[null,"[90% - 95%] Средняя цена. Лучше придержи и продай позже"]
[null,"[80% - 90%] Плохая цена. Продавай, только если срочно нужны деньги"]
[null,"Ниже 80% Рыба не в цене. Ни в коем случае не продавай"]

{"sheet":"Выгрузка с сайта","index":1,"n_rows":1357,"n_cols":5,"rows_kept":1357,"cut":false,"hidden":true,"merged":[]}
["Место:","Рыба:","Рыба:2","Прогресс:","Продано (шт):"]
[1,"","Косаткодельфин","",0]
[2,"","Морская свинья бесперая","",0]
[3,"","Рыба луна короткая","",0]
[4,"","Манта рифовая","",0]
[5,"","Рыба-луна овальная","",0]
[6,"","Сельдь чёшско-печорская","",0]
[7,"","Сельдь волжская","",0]
[8,"","Менхэден бразильский","",0]
[9,"","Бэрардиус Бэрда","",0]
[10,"","Акула мозамбикская бычья","",0]
[11,"","Кит синий альбинос","",0]
[12,"","Группер Малабарский","",0]
[13,"","Осьминог Думбо","",0]
[14,"","Кит японский","",0]
[16,"","Антимора  клюворылая","",0]
[17,"","Косатка малая","",0]
[19,"","Афалина","",0]
[20,"","Ремнезуб командорский","",0]
[21,"","Пузанок северокаспийский","",0]
[22,"","Рыба-тряпка","",0]
[23,"","Чешуйчатник","",0]
[24,"","Семапрохилодус","",0]
[25,"","Морская свинья обыкновенная","",0]
[26,"","Эолидия","",0]
[30,"","Кланкулюс","",0]
[31,"","Граммистес шестиполосый","",0]
[33,"","Форель Бива","",0]
[34,"","Вьюн амурский","",0]
[35,"","Сельдь тихоокеанская","",0]
[36,"","Сельдь атлантическая","",0]
[37,"","Кит южный гладкий","",0]
[38,"","Каранкс бронзовый","",0]
[39,"","Кинжалозуб","",0]
[40,"","Полосатик Омуры","",0]
[41,"","Каранкс Гебера","",0]
[43,"","Кижуч озерный","",0]
[44,"","Голец носатый","",0]
[47,"","Форель остроголовая","",0]
[49,"","Осетр тихоокеанский","",0]
[52,"","Рыба-ремень, сельдяной король","",0]
[53,"","Катран вануатский","",0]
[54,"","Краб-йети","",0]
[55,"","Акулеола черная","",0]
[56,"","Акула черная (Далатия)","",0]
[57,"","Хирург-Ахиллес","",0]
[58,"","Мегалодон","",0]
[59,"","Мешкорот","",0]
[60,"","Багре хигучи","",0]
[61,"","Акула эполетовая","",0]
[62,"","Акула губастая","",0]
[63,"","Пилонос японский","",0]
[64,"","Плиотрема","",0]
[65,"","Австралийский пилонос","",0]
[66,"","Минога сибирская","",0]
[67,"","Палтус американский","",0]
[68,"","Центрина Австралийская","",0]
[70,"","Хвостокол кольчатый","",0]
[71,"","Сарпа","",0]
[72,"","Форель Дональдсона","",0]
[73,"","Акула сигарная","",0]
[74,"","Акула скульптурная","",0]
[75,"","Акула - свинья","",0]
[77,"","Акула светлохвостая","",0]
[78,"","Лихия","",0]
[79,"","Маллисквама","",0]
[80,"","Камбала двухцветная","",0]
[81,"","Акула шершавая","",0]
[82,"","Калкан черноморский","",0]
[91,"","Лягушка нильская","",0]
[92,"","Мелания песчаная","",0]
[94,"","Карась-барабан","",0]
[95,"","Шипощёк длинноперый","",0]
[96,"","Рыба-кабан трехполосая","",0]
[97,"","Удильщик Джонсона","",0]
[100,"","Скат-орляк пятнистый","",0]
[107,"","Кит Бискайский","",0]
[108,"","Сферомия пятнистая","",0]
[110,"","Королева Ньяса","",0]
[115,"","Неалот","",0]
[118,"","Крылатка-зебра","",0]
[119,"","Тигровая рыба обыкновенная","",0]
[120,"","Китовая акула - альбинос","",0]
[121,"","","",0]
[122,"","Свистулька голубопятнистая","",0]
[126,"","Тиляпия галилейская","",0]
[131,"","Шильб полосатый","",0]
[145,"","Линофрина индийская","",0]
[146,"","Аба-аба","",0]
[149,"","Акула - квагга","",0]
[150,"","Оксимонокант длиннорылый","",0]
[151,"","Макрурус вооруженный","",0]
[152,"","Группер белоокаймленный","",0]
[153,"","Синодонтис вуалевый","",0]
[154,"","Велифер","",0]
[156,"","Конус березовый","",0]
[163,"","Конус дворцовый","",0]
[164,"","Конус Мильн-Эдвардса","",0]
[165,"","Ящерица каймановая","",0]
[166,"","Ампуллярия","",0]
[167,"","Цихлазома мезонаута","",0]
[169,"","Хемиодопсис","",0]
[171,"","Серцевидка","",0]
[172,"","Морская свинья Далля","",0]
[173,"","Акула плоскоголовая","",0]
[175,"","Пирапитинга","",0]
[177,"","Пиранья стройная","",0]
[183,"","Таедо","",0]
[185,"","Волютопсиус каштановый","",0]
[186,"","Спинорог золотоплавниковый","",0]
[187,"","Глаукус","",0]
[188,"","Спинорог бело-зеленый","",0]
[189,"","Ликодонт яванский","",0]
[190,"","Полосатик Идена","",0]
[191,"","Бисса","",0]
[196,"","Креветка северная","",0]
[199,"","Необерингиус Фрилея","",0]
[203,"","Перечный слизняк","",0]
[204,"","Ремнезуб атлантический","",0]
[205,"","Краб вельветовый","",0]
[206,"","Тунец макрелевый","",0]
[211,"","Краб Мраморный","",0]
[212,"","Кои Ямабуки Огон","",0]
[213,"","Чоп","",0]
[215,"","Итальянский усач","",0]
[217,"","Евдошка европейская","",0]
[219,"","Помакант рябой","",0]
[223,"","Младица или Лосось дунайский","",0]
[225,"","Логгерхед","",0]
[226,"","Наутилус палаванский","",0]
[227,"","Лепоринус Фредерика","",0]
[228,"","Метиннис пятнистый","",0]
[233,"","Пираиба","",0]
[234,"","Павлиний окунь ленточный","",0]
[235,"","Милеус ленточный","",0]
[236,"","Милоссома килебрюхая","",0]
[237,"","Аравана черная","",0]
[239,"","Анаконда","",0]
[240,"","Акара голубовато-пятнистая","",0]
[241,"","Акарихтис Хекеля","",0]
[242,"","Дианема полосатохвостая","",0]
[243,"","Дискус Хеккеля","",0]
[244,"","Джакунда","",0]
[246,"","Гидромедуза бразильская","",0]
[247,"","Саблезуб","",0]
[249,"","Рыба-капля","",0]
[250,"","Бельдюга Андрияшева","",0]
[251,"","Макропинна","",0]
[252,"","Черный нож","",0]
[253,"","Пиранья крапчатая","",0]
[254,"","Алепизавр","",0]
[255,"","Скат гладкий","",0]
[256,"","Кракен","",0]
[257,"","Павлиний окунь королевский","",0]
[258,"","Оринокский крокодил","",0]
[259,"","Акула коромандельская","",0]
[262,"","Голец чукотский","",0]
[263,"","Морская свинья очковая","",0]
[264,"","Амия","",0]
[265,"","Осетр белый","",0]
[266,"","Хендфиш","",0]
[267,"","Акула Мицукури","",0]
[268,"","Рыба-сабля","",0]
[269,"","Галаксия чилийская","",0]
[270,"","Жемчужная рыба","",0]
[271,"","Пайара","",0]
[272,"","Акула плащеносная","",0]
[273,"","Акула-домовой","",0]
[274,"","Акула светящаяся","",0]
[275,"","Кои Асаги","",0]
[276,"","Чешуеед,  Плагиотрем чешуеедный","",0]
[277,"","Кайман широкомордый","",0]
[278,"","Форель апачей","",0]
[279,"","Губка-лира","",0]
[280,"","Клюворыл Шепарда","",0]
[283,"","Пирарара","",0]
[284,"","Скат акулохвостый","",0]
[285,"","Носорог пятнистый","",0]
[286,"","Матамата","",0]
[287,"","Лазианциструс","",0]
[288,"","Панцирник мисиссипский","",0]
[289,"","Рак красный флоридский","",0]
[290,"","Панцирник длиннорылый","",0]
[291,"","Евдошка американская","",0]
[293,"","Омар норвежский","",0]
[297,"","Осьминог семирукий","",0]
[299,"","Рыбальдо","",0]
[301,"","Морская свинья аргентинская","",0]
[303,"","Буффало большеротый","",0]
[305,"","Венера воздушная","",0]
[310,"","Голец белый","",0]
[311,"","Кои Утсури","",0]
[312,"","","",0]
[313,"","Акула копьезубая","",0]
[315,"","Плавун южный","",0]
[316,"","Кит гренландский","",0]
[319,"","","",0]
[320,"","","",0]
[321,"","Омуль баргузинский","",0]
[322,"","","",0]
[324,"","","",0]
[325,"","","",0]
[326,"","","",0]
[327,"","","",0]
[328,"","","",0]
[329,"","Королева Танганьики","",0]
[335,"","Спинорог масочный","",0]
[337,"","Миксина шестижаберная","",0]
[339,"","Марлин индо-тихоокеанский","",0]
[340,"","Барбурисия рыжая","",0]
[341,"","Омосудид","",0]
[342,"","Батизавр воинственный","",0]
[343,"","Омар алый когтистый","",0]
[344,"","Омар мозамбикский","",0]
[346,"","","",0]
[349,"","Скопелозавр","",0]
[350,"","Тунец Большеглазый","",0]
[353,"","Акула головастая надувающаяся","",0]
[354,"","Акула вислоносая","",0]
[355,"","Акула щелеглазая","",0]
[363,"","Угорь крапчатый","",0]
[364,"","Тунец длиннохвостый","",0]
[365,"","Тунец синеперый","",0]
[366,"","Барракуда Хеллера","",0]
[367,"","Акула лимонная","",0]
[368,"","Акула кубинская ночная","",0]
[369,"","Лангуст полифагус","",0]
[370,"","Омар капский","",0]
[371,"","Саблезуб короткозубый","",0]
[372,"","Нетопырь длиннорылый","",0]
[373,"","Диплобатис гайянский","",0]
[374,"","Гимантолоф атлантический","",0]
[375,"","Опистопрокт коротконосый","",0]
[376,"","Базилозавр","",0]
[377,"","Акула кубинская кошачья","",0]
[378,"","Акула большеглазая песчаная","",0]
[379,"","Гуаса","",0]
[380,"","Макрель западноафриканская","",0]
[383,"","Акула острозубая песчаная","",0]
[384,"","Макрель китайская","",0]
[385,"","Акула американская кунья","",0]
[387,"","Бентодесма","",0]
[391,"","Акула-молот карибская","",0]
[401,"","Мобула терстони","",0]
[402,"","Цетотерий","",0]
[404,"","Сцимнодалатия","",0]
[405,"","Акула юкатанская","",0]
[406,"","Отодус","",0]
[433,"","Вундерпус","",0]
[434,"","Прометеева рыба","",0]
[435,"","Ехидна сулавесийская","",0]
[436,"","Крайт морской","",0]
[437,"","Ехидна одноцветная","",0]
[438,"","Кардинал пятнистый","",0]
[439,"","Конгер макроцефал","",0]
[440,"","Конгер обуд","",0]
[441,"","Морская змея Хардвика","",0]
[442,"","Ехидна белолобая","",0]
[449,"","Полосатик Райса","",0]
[459,"","Махсир темный","",0]
[462,"","Махсир красный","",0]
[468,"","Акула святого Иосифа","",0]
[473,"","Махсир золотой","",0]
[485,"","Змееголов Золотая кобра","",0]
[486,"","Гурами гигантский-альбинос","",0]
[489,"","Кит южный гладкий-альбинос","",0]
[490,"","Акрофизетр","",0]
[491,"","Богаскайа","",0]
[492,"","Змееголов императорский","",0]
[494,"","Лягушка роющая","",0]
[496,"","Удильщик Коммерсона","",0]
[498,"","Угорь собачий","",0]
[499,"","Группер буропятнистый","",0]
[500,"","Барракуда тупорылая","",0]
[504,"","Камерония Бургинья","",0]
[506,"","Тифобия","",0]
[511,"","Группер желто-синий","",0]
[512,"","Аспатария марнои","",0]
[513,"","Эферия эллиптическая","",0]
[514,"","Акула шелковая","",0]
[515,"","Многопёр Эндлихера","",0]
[517,"","Крокодил узкорылый","",0]
[520,"","Акула темная","",0]
[521,"","Алект вымпельный","",0]
[522,"","Акула большеносая","",0]
[523,"","Краб малавийский голубой","",0]
[525,"","Акула мадагаскарская","",0]
[526,"","Акула - небрия","",0]
[530,"","Спинорог голубой","",0]
[532,"","Акула пилозубая","",0]
[533,"","Сердеронг чернопятнистый","",0]
[534,"","Акула пелагическая лисья","",0]
[539,"","Тиляпия мозамбикская","",0]
[544,"","Мбамба","",0]
[553,"","Принцесса Бурунди","",0]
[554,"","Псевдотрофеус Демасони","",0]
[556,"","Сом ширентис","",0]
[558,"","Сом танганьикский","",0]
[560,"","Солидус","",0]
[563,"","Цихлида-дельфин","",0]
[564,"","Стигматохромис вуди","",0]
[565,"","Трофеус звездчатый","",0]
[568,"","Мбенга","",0]
[577,"","Тарпон атлантический","",0]
[586,"","Корифена малая","",0]
[587,"","Акула надувающаяся","",0]
[593,"","Кардинал","",0]
[594,"","Амфитретус пелагический","",0]
[595,"","Гримпотевтис тихоокеанский","",0]
[597,"","","",0]
[599,"","Акула австралийская головастая","",0]
[602,"","Макрель широкополосая","",0]
[603,"","Макрель малагасийская","",0]
[604,"","Макрель квинслендская","",0]
[605,"","Макрель продольно-полосатая","",0]
[606,"","Макрель австралийская","",0]
[607,"","Акулка карликовая","",0]
[618,"","Скат пятнистый","",0]
[622,"","Хвостокол широкохвостый","",0]
[623,"","Элагат","",0]
[624,"","Спинорог позолоченый","",0]
[625,"","Скат-орляк белоточечный","",0]
[626,"","Сладкогуб гигантский","",0]
[627,"","Каранкс черный","",0]
[629,"","Группер шестиполосый","",0]
[630,"","Бротула многоусая","",0]
[631,"","Вариола белокаемчатая","",0]
[632,"","Носорог однорогий","",0]
[634,"","Носорог безрогий","",0]
[635,"","Мурена желторотая","",0]
[637,"","","",0]
[638,"","Снэппер низкотелый","",0]
[641,"","Скат Аддисона","",0]
[642,"","Акула - пилохвост","",0]
[644,"","Трахинот круглый","",0]
[647,"","Макрель западноатлантическая","",0]
[648,"","Группер индоокеанский малоглазый","",0]
[649,"","Акула гладкозубая","",0]
[650,"","Акула-нянька короткохвостая","",0]
[651,"","Ремнезуб Блэнвиля","",0]
[652,"","Скат-орляк изысканный","",0]
[653,"","Минога каспийская","",0]
[654,"","Подкаменщик пестроногий","",0]
[655,"","Мобула японская","",0]
[656,"","Мурена европейская","",0]
[657,"","Дораб","",0]
[674,"","Фикус изящный","",0]
[684,"","Рак сигнальный","",0]
[713,"","Краб красный мангровый","",0]
[714,"","Тонна ленточная","",0]
[719,"","Белуга черноморская","",0]
[747,"","Голец якутский","",0]
[763,"","Каракатица лечебная","",0]
[766,"","Краб четырехугольный волосатый","",0]
[780,"","Щука травяная","",0]
[798,"","Императорский ангел","",0]
[799,"","Группер корраловый красный","",0]
[806,"","Кашалот карликовый","",0]
[809,"","Тонна гигантская","",0]
[832,"","Дорадо золотой","",0]
[837,"","Спинорог точечный","",0]
[854,"","Сарган","",0]
[860,"","Кои Платинум Огон","",0]
[898,"","Сомик леопардовый","",0]
[905,"","Хризиптера сине-желтая","",0]
[906,"","Акула галапагосская","",0]
[916,"","Палия","",0]
[948,"","Акула темноперая","",0]
[951,"","Скат акулий","",0]
[962,"","Камнеточец","",0]
[965,"","Хирург зебровый","",0]
[966,"","Рыба-белка","",0]
[970,"","Гимносарда","",0]
[972,"","Кальмар гигантский","",0]
[975,"","Уклейка","",0]
[977,"","Шемая","",0]
[978,"","Ряпушка сибирская","",0]
[983,"","Целакант коморский","",0]
[984,"","Улитка","",0]
[986,"","Минога тихоокеанская","",0]
[987,"","Ряпушка переславская","",0]
[989,"","Горбыль","",0]
[990,"","Минога украинская","",0]
[994,"","Черепаха кожистая","",0]
[995,"","Ангел  черноплавничный","",0]
[1000,"","Альбула","",0]
[1001,"","Мазутный двухголов","",0]
[1009,"","Палия лудожная","",0]
[1010,"","Храмуля","",0]
[1017,"","Хвостокол Мацубары","",0]
[1025,"","Кутум","",0]
[1026,"","Лосось каспийский","",0]
[1028,"","Тугун","",0]
[1029,"","Орфа","",0]
[1031,"","Линь золотистый","",0]
[1035,"","Тракакса","",0]
[1041,"","Луфарь","",0]
[1044,"","Малакост черный","",0]
[1045,"","Галаксия тасманская","",0]
[1046,"","Австралийский шишечник","",0]
[1047,"","Спинорог Розовохвостый","",0]
[1048,"","Барамунди","",0]
[1052,"","Краб-стригун","",0]
[1053,"","Краб мохнаторукий японский","",0]
[1054,"","Мерценария стимпсона","",0]
[1055,"","Краб пятиугольный волосатый","",0]
[1056,"","Краб-стригун японский","",0]
[1057,"","Осетр сахалинский","",0]
[1058,"","Карась мухтельский","",0]
[1059,"","Кальмар командорский","",0]
[1060,"","Кальмар тихоокеанский","",0]
[1061,"","Саратога","",0]
[1063,"","Спинорог голубоперый","",0]
[1065,"","Спинорог желтомордый","",0]
[1067,"","Энгидрина носатая","",0]
[1068,"","Окунь золотой","",0]
[1069,"","Мелкозубый пилорыл","",0]
[1071,"","Крокодил Джонстона","",0]
[1072,"","Брызгун крупнопятнистый","",0]
[1073,"","Спинорог Краснозубый","",0]
[1075,"","Бородавчатка","",0]
[1076,"","Стромбус волнистый","",0]
[1077,"","Двухцветная пеламида","",0]
[1079,"","Ворчун крапчатый","",0]
[1082,"","Акула узкозубая","",0]
[1086,"","Кардиум реснитчатый","",0]
[1087,"","Серрипес замечательный","",0]
[1088,"","Микижа шантарская","",0]
[1089,"","Морской монах","",0]
[1090,"","Макрурус малоглазый","",0]
[1094,"","Рапана жилковатая","",0]
[1096,"","Зубатка дальневосточная","",0]
[1098,"","Палия кряжевая","",0]
[1099,"","Прудовик","",0]
[1100,"","Тасманский краб","",0]
[1102,"","Мактра китайская","",0]
[1103,"","Перонидия жилковатая","",0]
[1104,"","Гребешок свифта","",0]
[1105,"","Каллитака Адамса","",0]
[1106,"","Петушок","",0]
[1107,"","Черепаха зеленая","",0]
[1108,"","Ябби","",0]
[1109,"","Макома широкая","",0]
[1111,"","Морская звезда красношипая","",0]
[1112,"","Фромия элегантная","",0]
[1114,"","Офиура полосатая","",0]
[1115,"","Гребешок коралловый","",0]
[1116,"","Мактра сахалинская","",0]
[1117,"","Гребешок бело-розовый","",0]
[1118,"","Конус Географический","",0]
[1119,"","Глицимерис приморский","",0]
[1121,"","Оникия","",0]
[1122,"","Аррип Большой","",0]
[1124,"","Гонатус","",0]
[1125,"","Патагонский гребешок","",0]
[1133,"","Акула японская бычья","",0]
[1134,"","Скалозуб бурый","",0]
[1137,"","Кои Сёва","",0]
[1139,"","Омуль байкальский","",0]
[1140,"","Черепаха саванная","",0]
[1146,"","Группер Квинслендский","",0]
[1153,"","Лемонема","",0]
[1154,"","Звезда-подушка","",0]
[1155,"","Гринда короткоплавниковая","",0]
[1157,"","Валаамка","",0]
[1161,"","Акула мальгашская","",0]
[1175,"","Гребешок приморский","",0]
[1179,"","Промикропс","",0]
[1180,"","Акула песчаная","",0]
[1192,"","Окунь-пират","",0]
[1195,"","Краб колючий","",0]
[1198,"","Мускулус","",0]
[1200,"","Гребешок исландский","",0]
[1205,"","Пескарь ленский","",0]
[1207,"","Красный конгрио","",0]
[1214,"","Рак длиннопалый","",0]
[1222,"","Камбала двухлинейная","",0]
[1225,"","Кои Оренжи Огон","",0]
[1227,"","Кои Кохаку","",0]
[1235,"","Группер странствующий","",0]
[1240,"","Голец-усач сибирский","",0]
[1244,"","Сом-плоскоголовик","",0]
[1245,"","Кузовок рогатый","",0]
[1246,"","Угорь электрический","",0]
[1248,"","Скат-орляк австралийский","",0]
[1250,"","Гребешок раскрашенный","",0]
[1259,"","Южная путассу","",0]
[18,"","Осетр адриатический","",1]
[27,"","Конус письменный","",1]
[42,"","Голец узонский","",1]
[45,"","Голец дальнеозерский","",1]
[76,"","Акула острозубая","",1]
[98,"","Скат-торпедо электрический","",1]
[138,"","Тилозур красноморский","",1]
[147,"","Горгасия красноморская","",1]
[155,"","Крокодил нильский","",1]
[160,"","Конус полосатый","",1]
[162,"","Конус мраморный","",1]
[168,"","Хараки","",1]
[174,"","Запрора","",1]
[176,"","Пираруку","",1]
[182,"","Тегу","",1]
[184,"","Тамбаку","",1]
[193,"","Краб сине-красный","",1]
[200,"","Зубатка полосатая","",1]
[209,"","Осьминог обыкновенный","",1]
[214,"","Усач Валецкого","",1]
[221,"","Морской черт или удильщик европейский","",1]
[229,"","Лепоринус зебровый","",1]
[231,"","Колоссома","",1]
[238,"","Астронотус глаздчатый","",1]
[245,"","Биара","",1]
[248,"","Утконос","",1]
[261,"","Гигантская тридакна","",1]
[281,"","Ремнезуб перуанский","",1]
[282,"","Тауматихт Акселя","",1]
[296,"","Губан пятнистый","",1]
[304,"","Буффало малоротый","",1]
[307,"","Рапана Венозная","",1]
[314,"","Акула большеротая","",1]
[317,"","Скампи  голубой","",1]
[323,"","Костерь","",1]
[330,"","Гимнура Натальская","",1]
[331,"","Группер мраморный","",1]
[336,"","Спинорог синегорлый","",1]
[348,"","Парапристипомоид","",1]
[362,"","Химера длинноносая","",1]
[389,"","Кубера","",1]
[390,"","Хвостокол американский","",1]
[392,"","Барракуда индийская","",1]
[395,"","Парапагурус","",1]
[398,"","Краб крестообразный","",1]
[408,"","Акула мадагаскарская острозубая","",1]
[460,"","Усач - гаечный ключ","",1]
[527,"","Группер крупнопятнистый","",1]
[531,"","Хирург белогрудый","",1]
[540,"","Нодулария боеми","",1]
[550,"","Летрин длиннорылый","",1]
[557,"","Сомик - кукушка","",1]
[588,"","Мероу красный","",1]
[590,"","Гаррупа-мармита","",1]
[621,"","Скар двухцветный","",1]
[628,"","Мурена - зебра","",1]
[633,"","Платакс - нетопырь","",1]
[636,"","Мурена ленточная","",1]
[659,"","Краб съедобный","",1]
[687,"","Каранкс большой","",1]
[715,"","Дрейссена речная","",1]
[721,"","Патагонский лобстер","",1]
[730,"","Змееголов","",1]
[745,"","Ореховидка тонкая","",1]
[754,"","Тасманский пескарь","",1]
[755,"","Рыба-лира","",1]
[761,"","Камбала зеленая","",1]
[767,"","Вампир адский","",1]
[768,"","Краб травяной","",1]
[770,"","Акула Сейла","",1]
[772,"","Морская собачка","",1]
[779,"","Форель золотая","",1]
[796,"","Пятнистая озерная лягушка","",1]
[834,"","Пагр красный","",1]
[891,"","Осетр якутский","",1]
[910,"","Белуга","",1]
[927,"","Каури-монета","",1]
[963,"","Чилим","",1]
[967,"","Аротрон колючий","",1]
[974,"","Чукучан","",1]
[981,"","Даллия","",1]
[991,"","Кумжа черноморская","",1]
[993,"","Вариола радужная","",1]
[1015,"","Черепаха болотная","",1]
[1019,"","Сладкогуб пятнистый","",1]
[1023,"","Кэтфиш","",1]
[1038,"","Длиннорылый полурыл","",1]
[1050,"","Акула черноперая","",1]
[1051,"","Мальма южная","",1]
[1064,"","Лещ черный южный","",1]
[1080,"","Гребешок лунный","",1]
[1091,"","Рак пятнистый","",1]
[1092,"","Головастик гигантский","",1]
[1095,"","Судак глубинный","",1]
[1097,"","Акула лососевая","",1]
[1101,"","Стромбус Королевский","",1]
[1110,"","Лямбис подагрический","",1]
[1113,"","Голубая линкия","",1]
[1127,"","Тунец полосатый","",1]
[1131,"","Акула азиатская кунья","",1]
[1141,"","Пиранья вымпельная","",1]
[1149,"","Морской финик","",1]
[1156,"","Акула зебровая","",1]
[1159,"","Камбала звездчатая","",1]
[1160,"","Макруронус новозеландский","",1]
[1163,"","Пятнистый воббегонг","",1]
[1168,"","Акула белоперая","",1]
[1172,"","Букцинум","",1]
[1181,"","Бельдюга восточная","",1]
[1197,"","Абрамитес мраморный","",1]
[1216,"","Краб камчатский","",1]
[1217,"","Палтус синекорый","",1]
[1233,"","Ламна или Акула сельдевая атлантическая","",1]
[1236,"","Кайман черный","",1]
[1242,"","Осьминог синекольчатый","",1]
[46,"","Голец длинноголовый","",2]
[69,"","Семга Камчатская","",2]
[87,"","Протоптер мраморный","",2]
[93,"","Карась морской чернополосый","",2]
[116,"","Мена пятнистая","",2]
[135,"","Акула рифовая","",2]
[157,"","Плоскоголов пятнистый","",2]
[158,"","Тигровая рыба нильская","",2]
[161,"","Конус текстильный","",2]
[170,"","Морская свинья тихоокеанская","",2]
[179,"","Пиранья краснобрюхая","",2]
[181,"","Уару","",2]
[197,"","Лиманда желтохвостая","",2]
[198,"","Зубатка синяя","",2]
[230,"","Иния","",2]
[292,"","Осетр тупорылый","",2]
[295,"","Скат круглый","",2]
[300,"","Перуанская сардина","",2]
[302,"","Нереис","",2]
[308,"","Краб снежный","",2]
[361,"","Флейторыл китайский","",2]
[381,"","Акула Оустона","",2]
[382,"","Грамма королевская","",2]
[393,"","Барракуда красная","",2]
[409,"","Акула серая короткоперая","",2]
[412,"","Рыба-ангел японская","",2]
[495,"","Протоптер бурый","",2]
[501,"","Сом малавийский","",2]
[516,"","Краб монтивагус","",2]
[542,"","Цихлида гигантская","",2]
[547,"","Лабидохромис Хонги","",2]
[566,"","Тигровая рыба танзанийская","",2]
[572,"","Нимбохромис полистигма","",2]
[616,"","Амфихт","",2]
[617,"","Скар широколобый","",2]
[643,"","Трахинот Кеннеди","",2]
[658,"","Сердцевидка съедобная","",2]
[668,"","Севрюга","",2]
[679,"","Карп индийский","",2]
[706,"","Форель тигровая","",2]
[793,"","Лунник","",2]
[808,"","Гребешок многообразный","",2]
[835,"","Тунец южный","",2]
[890,"","Голец Таранца","",2]
[894,"","Стерлядь сибирская","",2]
[895,"","Омуль чивыркуйский","",2]
[934,"","Рыба-бекас","",2]
[969,"","Луциан розовый","",2]
[971,"","Луциан императорский красный","",2]
[976,"","Востробрюшка уссурийская","",2]
[992,"","Омуль пенжинский","",2]
[1002,"","Хариус лабынкырский","",2]
[1011,"","Сайра атлантическая","",2]
[1066,"","Мангровый джек","",2]
[1085,"","Узо-угай","",2]
[1123,"","Хапаку","",2]
[1128,"","Устрица","",2]
[1169,"","Сериола большая","",2]
[1170,"","Флейторыл","",2]
[1173,"","Менёк","",2]
[1191,"","Сомик оливковый","",2]
[1193,"","Багре гури","",2]
[1220,"","Терпуг Стеллера","",2]
[1252,"","Австралийский колючепёр","",2]
[1254,"","Кальмар обыкновенный","",2]
[15,"","Кит синий северный","",7]
[28,"","Бычеглаз-хамрур","",5]
[29,"","Мурджан","",58]
[32,"","Кит северный гладкий","",5]
[48,"","Хариус Камчатский","",17]
[50,"","Корюшка  озерная малоротая","",30]
[51,"","Нерка карликовая","",21]
[83,"","Сом жирафовый","",3]
[84,"","Карп африканский","",9]
[85,"","Фахака","",8]
[86,"","Группер красноротый","",18]
[88,"","Полиптер","",7]
[89,"","Семутунду","",6]
[90,"","Мормиропс угревидный","",15]
[99,"","Мурена гигантская","",7]
[101,"","Луциан - Бохар","",12]
[102,"","Тунец индо-тихоокеанский","",10]
[103,"","Акула свиноглазая","",3]
[104,"","Аулонокара Бенша","",6]
[105,"","Аулонокара Ньяса","",3]
[106,"","Аристохромис Кpucmu","",7]
[109,"","Клоун танганьикский","",8]
[111,"","Кальвус","",27]
[112,"","Бабочка малавийская","",79]
[113,"","Бычок краснозубый","",10]
[114,"","Мурена перечная","",4]
[117,"","Бородавчатка красноморская","",3]
[123,"","Скорпенопсис дьявольский","",5]
[124,"","Собачка речная","",4]
[125,"","Скат тэниура лимма","",3]
[127,"","Убанги","",10]
[128,"","Тиляпия нильская","",17]
[129,"","Баяд","",7]
[130,"","Сом электрический","",10]
[132,"","Башир","",38]
[133,"","Ящероголов красный","",14]
[134,"","Каранг золотой","",12]
[136,"","Группер таувина","",4]
[137,"","Тунец скумбриевидный","",26]
[139,"","Цитарина обыкновенная","",7]
[140,"","Хемихромис-красавец","",31]
[141,"","Алеста","",59]
[142,"","Поллимир Исидора","",6]
[143,"","Тиляпия Зилля","",18]
[144,"","Нильский окунь","",4]
[148,"","Вунду","",20]
[159,"","Луциан горбатый","",5]
[178,"","Пиракатинга","",3]
[180,"","Тукунаре","",10]
[192,"","Луварь","",9]
[194,"","Каллихт","",5]
[195,"","Кокани","",3]
[201,"","Шашень","",13]
[202,"","Единорог расписной","",6]
[207,"","Тунец малый","",3]
[208,"","Скат мозаичный","",3]
[210,"","Пеламида атлантическая","",22]
[216,"","Долгопер средиземноморский","",8]
[218,"","Голец альпийский","",4]
[220,"","Сиган звездчатый","",3]
[222,"","Налим средиземноморский","",58]
[224,"","Камбала кесслера","",7]
[232,"","Пака","",4]
[260,"","Нарвал","",3]
[294,"","Омар европейский","",3]
[298,"","Рыба-еж длинношипая","",4]
[306,"","Японская макрель","",5]
[309,"","Акула исландская","",3]
[318,"","Скат - кукушка","",3]
[332,"","Бомбиль индоокеанский","",4]
[333,"","Акула рифовая белая","",9]
[334,"","Барракуда остроперая","",4]
[338,"","Группер шоколадный","",20]
[345,"","Барракуда желтохвостая","",7]
[347,"","Акула семижаберная","",4]
[351,"","Краб-вампир яванский","",20]
[352,"","Себарау","",111]
[356,"","Томан","",28]
[357,"","Сарган пресноводный","",96]
[358,"","Махсир донгнайский","",47]
[359,"","Гурами шоколадный","",69]
[360,"","Моллинезия парусная","",30]
[386,"","Устрица гигантская","",6]
[388,"","Хвостокол бахромчатый","",5]
[394,"","Сельдь - круглобрюшка","",74]
[396,"","Акула арабская","",4]
[397,"","Мобула короткоперая","",24]
[399,"","Мобула серповидная","",8]
[400,"","Барракуда большеглазая","",3]
[403,"","Алаша","",4]
[407,"","Антиас обыкновенный","",15]
[410,"","Анчоус Харденберга","",56]
[411,"","Нотопогон","",7]
[413,"","Тремоктопус","",5]
[414,"","Кохола Нуи","",23]
[415,"","Кохола Пигми","",10]
[416,"","Каранкс Тилле","",78]
[417,"","Каранкс широкоротый","",41]
[418,"","Конгер серебристый","",15]
[419,"","Морская змея гладкая","",16]
[420,"","Наутилус обыкновенный","",23]
[421,"","Аргонавт","",27]
[422,"","Мано мано","",46]
[423,"","Ехидна звездчатая","",56]
[424,"","Кудрепер длиннорылый","",77]
[425,"","Кохола Сперм","",7]
[426,"","Улуа","",20]
[427,"","Ау","",12]
[428,"","Кохола Полу","",6]
[429,"","Камбала павлинья","",14]
[430,"","Даскиллус гавайский","",30]
[431,"","Рыба-павлин","",114]
[432,"","Ехидна гвинейская","",18]
[443,"","Морская змея Белчера","",15]
[444,"","Неалот тихоокеанский","",91]
[445,"","Ластохвост спиральный","",19]
[446,"","Ехидна полосатая","",17]
[447,"","Конгер большеглазый","",4]
[448,"","Конгер песчаный решетчатый","",4]
[450,"","Черепахоголов Стейнеджера","",4]
[451,"","Рыба-прилипало","",7]
[452,"","Гребешок коричневый","",34]
[453,"","Змееголов коричневый","",12]
[454,"","Змееголов малабарский","",8]
[455,"","Аравана азиатская","",27]
[456,"","Расбора двухточечная","",13]
[457,"","Махсир малайский","",35]
[458,"","Рак пурпурный","",9]
[461,"","Змееголов радужный","",14]
[463,"","Макрогнатус пятнистый","",17]
[464,"","Усач тигровый шестиполосый","",3]
[465,"","Вьюн муреновидный","",37]
[466,"","Гурами гигантский","",83]
[467,"","Нандус борнейский","",42]
[469,"","Сом Хасселя","",28]
[470,"","Махсир оранжевоплавниковый","",70]
[471,"","Лягушка суматранская","",20]
[472,"","Гурами Вайланта","",59]
[474,"","Каракатица японская","",65]
[475,"","Конгер лорда Хоу","",32]
[476,"","Махи-махи","",92]
[477,"","Козобородка полосатая","",62]
[478,"","Рыба-каторжник","",92]
[479,"","Конгер мысовой","",58]
[480,"","Рыба-бабочка лимонная","",75]
[481,"","Кохола Поколе","",19]
[482,"","Кохола Вилу","",54]
[483,"","Конгер длинноперый","",96]
[484,"","Змееголов лесной","",55]
[487,"","Акулка Аполлона","",31]
[488,"","Сом Нихофа","",50]
[493,"","Угорь болотный азиатский","",50]
[497,"","Сиган струйчатый","",5]
[502,"","Протоптер малый","",7]
[503,"","Ореохромис Каронга","",13]
[505,"","Шамбардия Валберга","",4]
[507,"","Буртония Фоаи","",4]
[508,"","Аспатария пифлоидная","",4]
[509,"","Крылатка антенновая","",3]
[510,"","Кудрепер Форстера","",8]
[518,"","Дистиходус шестиполосый","",5]
[519,"","Кампанго","",4]
[524,"","Краб танганьикский","",3]
[528,"","","",9]
[529,"","Плоскоголов бахромчатый","",5]
[535,"","Окунь танганьикский","",3]
[536,"","Окунь большеглазый","",11]
[537,"","Гетеротис","",8]
[538,"","Тиляпия красногрудая","",23]
[541,"","Цихлида тупорылая","",13]
[543,"","Окунь гладкий","",49]
[545,"","Лаванда Мбуна","",37]
[546,"","Офтальмотиляпия носатая","",4]
[548,"","Лабеотрофеус обыкновенный","",9]
[549,"","Лабидохромис большой","",10]
[551,"","Фея перламутровая","",3]
[552,"","Сардина танганьикская","",55]
[555,"","Шпрот таганьикский","",5]
[559,"","Меланохромис Чипока","",20]
[561,"","Цихлида Ливингстона","",11]
[562,"","Мутела","",7]
[567,"","Окунь вилохвостый","",6]
[569,"","Сом мраморный","",5]
[570,"","Золотой леопард","",3]
[571,"","Аухеногланис","",27]
[573,"","Коелатура мозамбикская","",4]
[574,"","Цихлида - колибри","",14]
[575,"","Мормир бутылконосый","",19]
[576,"","Гуативера","",12]
[578,"","Звездочет крапчатый","",28]
[579,"","Акула карибская длиннорылая","",41]
[580,"","Гипоплектрус","",20]
[581,"","Этмоптерус серый","",18]
[582,"","Кабрилья","",62]
[583,"","Марлин атлантический","",7]
[584,"","Гуачанчо","",11]
[585,"","Акула флоридская","",45]
[589,"","Черна бурополосая","",28]
[591,"","Этелис королевский","",24]
[592,"","Копьеносец малый","",4]
[596,"","Бычерыл американский","",5]
[598,"","Макрель испанская","",4]
[600,"","Кобия","",7]
[601,"","Акула - нянька усатая","",11]
[608,"","Кабра-мора","",18]
[609,"","Иглобрюх-попугайчик","",14]
[610,"","Кабуча","",87]
[611,"","Фундулюс","",52]
[612,"","Цапатеро-чакета","",13]
[613,"","Группер темный","",17]
[614,"","Скватина американская","",13]
[615,"","Этмоптерус Шульца","",13]
[619,"","Скар рубиновый","",30]
[620,"","Сарган крокодиловый","",12]
[639,"","Макрель бразильская","",18]
[640,"","Снэппер нитеперый","",84]
[645,"","Трахинот большой","",19]
[646,"","Макрель-Кавалла","",19]
[660,"","Поллак","",12]
[661,"","Тюрбо","",4]
[662,"","Ротан","",60]
[663,"","Окунь алеутский","",18]
[664,"","Окунь северный морской","",3]
[665,"","Вырезуб","",4]
[666,"","Клювач северный","",31]
[667,"","Бычок-кругляк","",35]
[669,"","Сом","",50]
[670,"","Ершоватка","",7]
[671,"","Терпуг одноперый","",4]
[672,"","Трахира Хоплиас, Малабарский хоплиас","",5]
[673,"","Маколор черный","",72]
[675,"","Толстолобик белый","",38]
[676,"","Линь","",10]
[677,"","Мригал","",10]
[678,"","Краппи белый","",26]
[680,"","Окунь пятнистый","",110]
[681,"","Сомик желтый","",9]
[682,"","Сомик канальный","",18]
[683,"","Ауха","",70]
[685,"","Минога огайская","",7]
[686,"","Сазан","",49]
[688,"","Марлин полосатый","",15]
[689,"","Терпуг зайцеголовый","",7]
[690,"","Терпуг бурый","",25]
[691,"","Луциан темно-бурый","",8]
[692,"","Группер картофельный","",12]
[693,"","Тунец голубой","",18]
[694,"","Марлин голубой","",24]
[695,"","Группер томатный","",6]
[696,"","Парусник","",14]
[697,"","Берш","",87]
[698,"","Хариус ленский","",5]
[699,"","Пиранья обыкновенная","",50]
[700,"","Судак","",45]
[701,"","Елец-андруга","",10]
[702,"","Быстрянка","",7]
[703,"","Синец","",32]
[704,"","Краснопер мелкочешуйчатый","",47]
[705,"","Валек","",8]
[707,"","Волосозуб","",4]
[708,"","Гольян Чекановского","",20]
[709,"","Хариус сибирский","",6]
[710,"","Елец","",68]
[711,"","Жерех","",43]
[712,"","Нерка","",19]
[716,"","Судак канадский","",40]
[717,"","Желтощек","",7]
[718,"","Сельдь американская","",100]
[720,"","Адамуссиум","",3]
[722,"","Змеиная макрель","",5]
[723,"","Лещ морской обыкновенный","",53]
[724,"","Косатка-скрипун","",64]
[725,"","Мальма лабынкырская","",20]
[726,"","Краснопёр монгольский","",45]
[727,"","Угорь","",97]
[728,"","Топь","",36]
[729,"","Косатка уссурийская","",79]
[731,"","Рак речной","",7]
[732,"","Верхогляд","",9]
[733,"","Сом солдатова","",48]
[734,"","Навага тихоокеанская","",71]
[735,"","Горбуша южноамериканская","",8]
[736,"","Троегуб","",46]
[737,"","Сиг амурский","",7]
[738,"","Микижа чилийская","",13]
[739,"","Рипус","",15]
[740,"","Амур черный","",4]
[741,"","Скат Йенсена","",3]
[742,"","Ерш-носарь","",3]
[743,"","Щука амурская","",55]
[744,"","Скат короткохвостый","",9]
[746,"","Густера","",72]
[748,"","Скат полярный","",17]
[749,"","Тасманский рак","",3]
[750,"","Карп гигантский","",5]
[751,"","Скат Монтегю","",7]
[752,"","Губан радужный","",10]
[753,"","Перуанская сериолелла","",8]
[756,"","Ленок острорылый","",21]
[757,"","Конголли","",3]
[758,"","Буффало черный","",5]
[759,"","Золотистая скорпена","",28]
[760,"","Инанга","",85]
[762,"","Калинка","",57]
[764,"","Акула звездчатошипая","",4]
[765,"","Вьюн","",36]
[769,"","Усач днепровский","",6]
[771,"","Акула-бык","",8]
[773,"","Угорь короткоребристый","",64]
[774,"","Форель мраморная","",5]
[775,"","Кижуч","",38]
[776,"","Щука красноперая","",11]
[777,"","Архитеутис","",15]
[778,"","Тригла желтая","",23]
[781,"","Осетр русский","",56]
[782,"","Шемая черноморская","",22]
[783,"","Минога морская","",3]
[784,"","Голец усатый","",10]
[785,"","Осетр атлантический","",98]
[786,"","Угорь речной американский","",16]
[787,"","Кашорро краснохвостый","",5]
[788,"","Лосось атлантический","",3]
[789,"","Тунец желтопёрый","",3]
[790,"","Тартаруга","",5]
[791,"","Треска восточная","",30]
[792,"","Керчак-яок","",19]
[794,"","Минтай","",10]
[795,"","Рыба-лиса","",16]
[797,"","Галаксия пятнистая","",15]
[800,"","Корюшка","",55]
[801,"","Бутылконос северный","",17]
[802,"","Косатка","",44]
[803,"","Сардина европейская","",11]
[804,"","Кефаль-губач","",5]
[805,"","Краб пресноводный","",12]
[807,"","Хариус восточносибирский","",7]
[810,"","Окунь красноглазый","",20]
[811,"","Солнечник обыкновенный","",4]
[812,"","Окунь  каменный","",37]
[813,"","Сомик американский","",20]
[814,"","Байкальский осетр","",5]
[815,"","Широколобка темная","",15]
[816,"","Хариус байкальский Белый","",8]
[817,"","Елец сибирский","",22]
[818,"","Омуль маломорский","",10]
[819,"","Веслонос","",9]
[820,"","Пелядь","",28]
[821,"","Сомик голубой","",16]
[822,"","Сиг","",94]
[823,"","Сом амурский","",99]
[824,"","Краппи черный","",60]
[825,"","Окунь прибрежный","",25]
[826,"","Окунь песчаный","",92]
[827,"","Окунь большеротый","",22]
[828,"","Окунь ушастый","",16]
[829,"","Сима южноамериканская","",18]
[830,"","Форель озерная","",96]
[831,"","Щучка Хьюжета","",12]
[833,"","Лягушка озерная","",3]
[836,"","Акула серо-бурая","",14]
[838,"","Кумжа южноамериканская","",41]
[839,"","Бикуда","",41]
[840,"","Рыбец","",23]
[841,"","Хариус байкальский черный","",8]
[842,"","Ерш","",87]
[843,"","Подкаменщик","",28]
[844,"","Чавыча южноамериканская","",105]
[845,"","Лосось южноамериканский","",76]
[846,"","Карась якутский","",50]
[847,"","Кижуч южноамериканский","",20]
[848,"","Акула-молот обыкновенная","",8]
[849,"","Полосатик карликовый","",7]
[850,"","Лещ морской белый","",77]
[851,"","Рыба-луна","",10]
[852,"","Сельдь черноморская","",10]
[853,"","Солнечник синежаберный","",27]
[855,"","Кефаль-лобан","",42]
[856,"","Налим","",53]
[857,"","Новозеландская мерлуза","",5]
[858,"","Берикс австралийский","",79]
[859,"","Дорадо","",13]
[861,"","Омуль северобайкальский","",105]
[862,"","Акула голубая","",79]
[863,"","Ледяная рыба","",19]
[864,"","Манта","",30]
[865,"","Акула-лисица","",23]
[866,"","Камбала морская","",21]
[867,"","Щука черная","",10]
[868,"","Голец - кристивомер","",48]
[869,"","Щука-маскинонг","",9]
[870,"","Сплэйк","",45]
[871,"","Лаврак белый","",76]
[872,"","Нейва","",15]
[873,"","Пыжьян","",54]
[874,"","Лосось Кларка","",7]
[875,"","Микижа","",66]
[876,"","Палия американская","",11]
[877,"","Лещ морской кинжальный","",52]
[878,"","Макрель голубая","",96]
[879,"","Глосса","",4]
[880,"","Стерлядь","",101]
[881,"","Акула-молот бронзовая","",8]
[882,"","Палтус атлантический","",12]
[883,"","Мольва","",47]
[884,"","Зеленушка","",38]
[885,"","Крокодил гребнистый","",92]
[886,"","Палия южноамериканская","",27]
[887,"","Кит горбатый-альбинос","",28]
[888,"","Нерпа байкальская","",4]
[889,"","Сом Суруби","",17]
[892,"","Горбуша","",98]
[893,"","Кунджа","",69]
[896,"","Щука глубинная","",8]
[897,"","Голец черского","",14]
[899,"","Павлиний окунь-бабочка","",9]
[900,"","Голец Леванидова","",67]
[901,"","Хариус европейский","",16]
[902,"","Кит горбатый","",54]
[903,"","Моллюск","",36]
[904,"","Чавыча","",38]
[907,"","Губан колючий","",12]
[908,"","Карась морской","",60]
[909,"","Чехонь","",36]
[911,"","Амур белый","",109]
[912,"","Кета","",23]
[913,"","Мальма","",7]
[914,"","Форель радужная","",79]
[915,"","Бестер","",3]
[917,"","Подкаменщик сибирский","",12]
[918,"","Шип","",75]
[919,"","Форель ручьевая","",54]
[920,"","Форель севанская","",16]
[921,"","Голавль","",5]
[922,"","Гольян озерный","",27]
[923,"","Моторо","",7]
[924,"","Спинорог расписной","",7]
[925,"","Каракатица расписная","",7]
[926,"","Спинорог заплаточный","",3]
[928,"","Ваху","",10]
[929,"","Катран","",24]
[930,"","Окунь морской золотистый","",72]
[931,"","Акула мелкозубая","",3]
[932,"","Пиранья ромбовидная","",48]
[933,"","Ангел лирохвостый","",15]
[935,"","Рыба-наполеон","",21]
[936,"","Спинорог Пикассо","",19]
[937,"","Аротрон белоточечный","",6]
[938,"","Пескарь","",53]
[939,"","Клюворыл","",42]
[940,"","Идол мавританский","",5]
[941,"","Нельма","",6]
[942,"","Муксун","",4]
[943,"","Тунец длинноперый","",8]
[944,"","Луциан чернохвостый","",19]
[945,"","Губан носатый","",8]
[946,"","Клоун мавританский","",17]
[947,"","Покрышка старая","",64]
[949,"","Хирург флаговый","",22]
[950,"","Сапог рваный","",79]
[952,"","Пикша","",91]
[953,"","Окунь - клювач","",13]
[954,"","Сайка","",36]
[955,"","Окунь морской норвежский","",65]
[956,"","Зубарик обыкновенный","",60]
[957,"","Акула - собака","",38]
[958,"","Треска атлантическая","",38]
[959,"","Зубатка пятнистая","",45]
[960,"","Сайда","",33]
[961,"","Путассу северная","",21]
[964,"","Барабулька","",18]
[968,"","Луциан королевский","",11]
[973,"","Чебак","",11]
[979,"","Масляная рыба","",6]
[980,"","Черт лабынкырский","",3]
[982,"","Группер стройный","",6]
[985,"","Сиг-востряк","",5]
[988,"","Морская лисица","",12]
[996,"","Краб кокосовый","",5]
[997,"","Рыба-бабочка сомалийская","",9]
[998,"","Толстолобик пестрый","",47]
[999,"","Жерех - лысач","",22]
[1003,"","Угай мелкочешуйный","",10]
[1004,"","Угай крупночешуйчатый","",6]
[1005,"","Мойва","",3]
[1006,"","Луциан синеполосый","",7]
[1007,"","Калуга","",6]
[1008,"","Сомик черный","",4]
[1012,"","Пинагор","",8]
[1013,"","Колюшка трехиглая","",21]
[1014,"","Тарань","",16]
[1016,"","Окунь малый","",51]
[1018,"","Кит серый","",8]
[1020,"","Дасцилл зебровидный","",9]
[1021,"","Акула ночная","",4]
[1022,"","Кузовок-кубик","",7]
[1024,"","Колюшка девятииглая","",79]
[1027,"","Ряпушка","",4]
[1030,"","Конь пестрый","",3]
[1032,"","Сельдь каспийская","",4]
[1033,"","Черепаха каспийская","",35]
[1034,"","Акула белоглазая","",3]
[1036,"","Осетр амурский","",3]
[1037,"","Даватчан","",51]
[1039,"","Арапаима","",5]
[1040,"","Осман голый","",14]
[1042,"","Коаро","",6]
[1043,"","Австралийский анчоус","",23]
[1049,"","Акула китовая","",5]
[1062,"","Аррип малый","",5]
[1070,"","Пигоплит, Королевский ангел","",21]
[1074,"","Спинорог оранжевополосый","",33]
[1078,"","Комета, Каллоплезиопс","",3]
[1081,"","Угольная рыба","",4]
[1083,"","Морской ворон","",3]
[1084,"","Сиг хадары","",8]
[1093,"","Мидия","",3]
[1120,"","Усач обыкновенный","",7]
[1126,"","Краб королевский","",19]
[1129,"","Перуанский ансчоус","",13]
[1130,"","Камбала полосатая","",3]
[1132,"","Желтохвост","",36]
[1135,"","Острорылый крокодил","",28]
[1136,"","Омуль","",14]
[1138,"","Перуанская ставрида","",29]
[1142,"","Морской орел пятнистый","",16]
[1143,"","Аравана серебристая","",9]
[1144,"","Попока","",13]
[1145,"","Осетр сибирский","",8]
[1147,"","Корюшка зубатая азиатская","",22]
[1148,"","Пузанок","",4]
[1150,"","Кит карликовый","",18]
[1151,"","Патагонский клыкач","",4]
[1152,"","Чилийская пеламида","",11]
[1158,"","Лудога","",14]
[1162,"","Акула пепельная","",22]
[1164,"","Каранкс синеплавниковый","",18]
[1165,"","Акула белая","",18]
[1166,"","Кефаль алмазная","",3]
[1167,"","Акула кошачья","",14]
[1171,"","Акула длиннокрылая","",3]
[1174,"","Осетр персидский","",14]
[1176,"","Вобла","",41]
[1177,"","Группер леопардовый","",36]
[1178,"","Анчоус японский","",83]
[1182,"","Мактромерис изменчивый","",3]
[1183,"","Акула полярная","",26]
[1184,"","Сима","",25]
[1185,"","Лиманда длиннорылая","",6]
[1186,"","Губан гребенчатый","",3]
[1187,"","Скат лучевой","",3]
[1188,"","Песчанка тихоокеанская","",3]
[1189,"","Пирапутанга","",3]
[1190,"","Апистограмма факельная","",17]
[1194,"","Каллиста короткосифонная","",6]
[1196,"","Птеригоплихт парчовый","",9]
[1199,"","Чир","",11]
[1201,"","Налим тонкохвостый","",18]
[1202,"","Пузанок дунайский","",48]
[1203,"","Акула индонезийская","",5]
[1204,"","Мандаринка","",3]
[1206,"","Группер павлиний","",19]
[1208,"","Ремнезуб Грея","",36]
[1209,"","Лещ восточно-сибирский","",7]
[1210,"","Шабути","",4]
[1211,"","Белоглазка","",41]
[1212,"","Кашалот-альбинос","",4]
[1213,"","Перуанская макрель","",3]
[1215,"","Химера европейская","",5]
[1218,"","Подуст","",19]
[1219,"","Пеленгас","",8]
[1221,"","Хирург желтоплавничный","",29]
[1223,"","Шпрот европейский","",12]
[1224,"","Пагелл красный","",24]
[1226,"","Палтус стрелозубый","",10]
[1228,"","Акула серо-голубая","",19]
[1229,"","Мурена ячеистая","",7]
[1230,"","Миксина атлантическая","",8]
[1231,"","Владиславия","",5]
[1232,"","Морской еж","",46]
[1234,"","Дискус зеленый","",3]
[1237,"","Багре негро","",14]
[1238,"","Рогатка","",10]
[1239,"","Марлин черный","",34]
[1241,"","Золотистая сериола","",13]
[1243,"","Шортбилл","",7]
[1247,"","Мако длинноплавниковый","",8]
[1249,"","Мерланг","",59]
[1251,"","Палтус белокорый","",5]
[1253,"","Лоцман","",16]
[1255,"","Нанностом Бекфорда","",31]
[1256,"","Лиманда сахалинская","",5]
[1257,"","Рыба-лягушка","",23]
[1258,"","Кайман крокодиловый","",3]
[1260,"","Сфирена мелкочешуйная","",164]
[1261,"","Омуль посольский","",185]
[1262,"","Широколобка красная","",144]
[1263,"","Цапатеро","",131]
[1264,"","Акула шестижаберная","",159]
[1265,"","Таймень","",118]
[1266,"","Финта","",129]
[1267,"","Носорог Вламинга","",229]
[1268,"","Гольян Лаговского","",125]
[1269,"","Сиган яванский","",168]
[1270,"","Карп зеркальный","",219]
[1271,"","Карп голый","",229]
[1272,"","Лаврак полосатый","",191]
[1273,"","Апсил зубатый","",141]
[1274,"","Ехидна грациозная","",115]
[1275,"","Окунь малоротый","",207]
[1276,"","Конгер японский","",174]
[1277,"","Снэк","",216]
[1278,"","Перка","",152]
[1279,"","Скумбрия атлантическая","",191]
[1280,"","Язь","",183]
[1281,"","Акула гигантская","",182]
[1282,"","Лещ амурский черный","",162]
[1283,"","Виттина короманделиана","",169]
[1284,"","Змееголов полосатый","",164]
[1285,"","Рыба-меч","",200]
[1286,"","Акула-молот гигантская","",205]
[1287,"","Скат колючий","",118]
[1288,"","Сом лесной","",128]
[1289,"","Кайман гладколобый","",116]
[1290,"","Голец арктический","",159]
[1291,"","Усач борнейский","",205]
[1292,"","Подлещик","",211]
[1293,"","Скалярия Леопольда","",157]
[1294,"","Робало","",193]
[1295,"","Змееголов черный","",153]
[1296,"","Креветка - хоббит","",157]
[1297,"","Бонито","",189]
[1298,"","Сейвал или кит ивасевый","",211]
[1299,"","Полосатик южный","",174]
[1300,"","Полосатик Брайда","",220]
[1301,"","Спинорог крупнопятнистый","",135]
[1302,"","Лещ","",296]
[1303,"","Полурыл лесной","",339]
[1304,"","Группер палевый","",282]
[1305,"","Кашалот","",339]
[1306,"","Каранкс желтоперый","",304]
[1307,"","Голомянка","",328]
[1308,"","Ленок","",266]
[1309,"","Акула суповая","",328]
[1310,"","Желтокрылка","",232]
[1311,"","Бычок-цуцик","",342]
[1312,"","Селар","",231]
[1313,"","Акула тигровая","",232]
[1314,"","Акула гренландская","",339]
[1315,"","Усач жесткогубый","",307]
[1316,"","Гринда обыкновенная","",238]
[1317,"","Рувета","",328]
[1318,"","Барабулька мелкозубая","",240]
[1319,"","Акула желтая","",297]
[1320,"","Омуль селенгинский","",395]
[1321,"","Бычок-кнут","",390]
[1322,"","Полосатик малый","",458]
[1323,"","Лаврак","",348]
[1324,"","Макрогнатус зебровый","",402]
[1325,"","Кераи","",345]
[1326,"","Вьюн серополосый","",411]
[1327,"","Красноперка","",423]
[1328,"","Луциан зеленый","",358]
[1329,"","Змееголов карликовый","",422]
[1330,"","Щучка азиатская","",448]
[1331,"","Кавалла островная","",427]
[1332,"","Махсир обыкновенный","",347]
[1333,"","Белуха","",520]
[1334,"","Карп чешуйчатый","",531]
[1335,"","Усач Ваандерса","",469]
[1336,"","Бутылконос плоскоголовый","",463]
[1337,"","Карась золотой","",618]
[1338,"","Усач краснохвостый","",578]
[1339,"","Расбора обыкновенная","",801]
[1340,"","Карась серебряный","",746]
[1341,"","Окунь","",731]
[1342,"","Анабас","",725]
[1343,"","Ножезуб полосатый","",718]
[1344,"","Усач Бэнкси","",752]
[1345,"","Сардинелла желтополосая","",898]
[1346,"","Луциан кашмирский","",841]
[1347,"","Щука обыкновенная","",829]
[1348,"","Пагр австралийский","",812]
[1349,"","Барракуда большая","",1020]
[1350,"","Скат гитарный","",1046]
[1351,"","Флагохвост гавайский","",1130]
[1352,"","Сом лягушковый","",1236]
[1353,"","Плотва","",1286]
[1354,"","Змееголов пятнистый","",1688]
[1355,"","Змееголов глазчатый","",2165]
[1356,"","Финвал","",22845]

{"sheet":"Выгрузка","index":2,"n_rows":1457,"n_cols":5,"rows_kept":1457,"cut":false,"hidden":true,"merged":[]}
["Серверы"]
["Вход или регистрация"]
["Войти Регистрация Забыли пароль? Не пришел пароль?"]
["Загрузить"]
["Загрузить игру"]
["Обои на рабочий стол"]
["Новости"]
["Турниры"]
["Регулярные турниры"]
["Big Game Fishing"]
["Рейтинги"]
["Рейтинги игроков"]
["Таблица рекордов"]
["Командный турнирный рейтинг"]
["Командный дуэльный рейтинг"]
["Справочник"]
["Статистика сервера"]
["Цены на рыбу"]
["Список рыбы"]
["Список предметов"]
["Список водоемов"]
["Вопросы и ответы"]
["Мобильная версия"]
["Загрузить игру МРР"]
["Помощь и советы МРР"]
["Таблица рекордов МРР"]
["Цены на рыбу МРР"]
["Карта сервера МРР"]
["Расписание турниров МРР"]
["Рейтинги игроков МРР"]
["Рейтинг команд МРР"]
["Разработка"]
["Сообщество"]
["Форум"]
["Социальные сети"]
["Главная »"]
["Цены на рыбу"]
[]
["Цены на рыбу"]
[]
["Стоимость рыбы меняется каждые 5 реальных часов. Чем больше продают данную рыбу, тем меньше она стоит."]
[]
["Ниже представлен спрос на рыбу в порядке убывания."]
["Последнее изменение цен было в 15:25 МСК."]
["Место:","Рыба:",null,"Прогресс:","Продано (шт):"]
[1,null,"Косаткодельфин",null,0]
[2,null,"Морская свинья бесперая",null,0]
[3,null,"Рыба луна короткая",null,0]
[4,null,"Манта рифовая",null,0]
[5,null,"Рыба-луна овальная",null,0]
[6,null,"Сельдь чёшско-печорская",null,0]
[7,null,"Сельдь волжская",null,0]
[8,null,"Менхэден бразильский",null,0]
[9,null,"Бэрардиус Бэрда",null,0]
[10,null,"Акула мозамбикская бычья",null,0]
[11,null,"Кит синий альбинос",null,0]
[12,null,"Группер Малабарский",null,0]
[13,null,"Осьминог Думбо",null,0]
[14,null,"Кит японский",null,0]
[15,null,"Кит синий северный",null,7]
[16,null,"Антимора клюворылая",null,0]
[17,null,"Косатка малая",null,0]
[18,null,"Осетр адриатический",null,1]
[19,null,"Афалина",null,0]
[20,null,"Ремнезуб командорский",null,0]
[21,null,"Пузанок северокаспийский",null,0]
[22,null,"Рыба-тряпка",null,0]
[23,null,"Чешуйчатник",null,0]
[24,null,"Семапрохилодус",null,0]
[25,null,"Морская свинья обыкновенная",null,0]
[26,null,"Эолидия",null,0]
[27,null,"Конус письменный",null,1]
[28,null,"Бычеглаз-хамрур",null,5]
[29,null,"Мурджан",null,58]
[30,null,"Кланкулюс",null,0]
[31,null,"Граммистес шестиполосый",null,0]
[32,null,"Кит северный гладкий",null,5]
[33,null,"Форель Бива",null,0]
[34,null,"Вьюн амурский",null,0]
[35,null,"Сельдь тихоокеанская",null,0]
[36,null,"Сельдь атлантическая",null,0]
[37,null,"Кит южный гладкий",null,0]
[38,null,"Каранкс бронзовый",null,0]
[39,null,"Кинжалозуб",null,0]
[40,null,"Полосатик Омуры",null,0]
[41,null,"Каранкс Гебера",null,0]
[42,null,"Голец узонский",null,1]
[43,null,"Кижуч озерный",null,0]
[44,null,"Голец носатый",null,0]
[45,null,"Голец дальнеозерский",null,1]
[46,null,"Голец длинноголовый",null,2]
[47,null,"Форель остроголовая",null,0]
[48,null,"Хариус Камчатский",null,17]
[49,null,"Осетр тихоокеанский",null,0]
[50,null,"Корюшка озерная малоротая",null,30]
[51,null,"Нерка карликовая",null,21]
[52,null,"Рыба-ремень, сельдяной король",null,0]
[53,null,"Катран вануатский",null,0]
[54,null,"Краб-йети",null,0]
[55,null,"Акулеола черная",null,0]
[56,null,"Акула черная (Далатия)",null,0]
[57,null,"Хирург-Ахиллес",null,0]
[58,null,"Мегалодон",null,0]
[59,null,"Мешкорот",null,0]
[60,null,"Багре хигучи",null,0]
[61,null,"Акула эполетовая",null,0]
[62,null,"Акула губастая",null,0]
[63,null,"Пилонос японский",null,0]
[64,null,"Плиотрема",null,0]
[65,null,"Австралийский пилонос",null,0]
[66,null,"Минога сибирская",null,0]
[67,null,"Палтус американский",null,0]
[68,null,"Центрина Австралийская",null,0]
[69,null,"Семга Камчатская",null,2]
[70,null,"Хвостокол кольчатый",null,0]
[71,null,"Сарпа",null,0]
[72,null,"Форель Дональдсона",null,0]
[73,null,"Акула сигарная",null,0]
[74,null,"Акула скульптурная",null,0]
[75,null,"Акула - свинья",null,0]
[76,null,"Акула острозубая",null,1]
[77,null,"Акула светлохвостая",null,0]
[78,null,"Лихия",null,0]
[79,null,"Маллисквама",null,0]
[80,null,"Камбала двухцветная",null,0]
[81,null,"Акула шершавая",null,0]
[82,null,"Калкан черноморский",null,0]
[83,null,"Сом жирафовый",null,3]
[84,null,"Карп африканский",null,9]
[85,null,"Фахака",null,8]
[86,null,"Группер красноротый",null,18]
[87,null,"Протоптер мраморный",null,2]
[88,null,"Полиптер",null,7]
[89,null,"Семутунду",null,6]
[90,null,"Мормиропс угревидный",null,15]
[91,null,"Лягушка нильская",null,0]
[92,null,"Мелания песчаная",null,0]
[93,null,"Карась морской чернополосый",null,2]
[94,null,"Карась-барабан",null,0]
[95,null,"Шипощёк длинноперый",null,0]
[96,null,"Рыба-кабан трехполосая",null,0]
[97,null,"Удильщик Джонсона",null,0]
[98,null,"Скат-торпедо электрический",null,1]
[99,null,"Мурена гигантская",null,7]
[100,null,"Скат-орляк пятнистый",null,0]
[101,null,"Луциан - Бохар",null,12]
[102,null,"Тунец индо-тихоокеанский",null,10]
[103,null,"Акула свиноглазая",null,3]
[104,null,"Аулонокара Бенша",null,6]
[105,null,"Аулонокара Ньяса",null,3]
[106,null,"Аристохромис Кpucmu",null,7]
[107,null,"Кит Бискайский",null,0]
[108,null,"Сферомия пятнистая",null,0]
[109,null,"Клоун танганьикский",null,8]
[110,null,"Королева Ньяса",null,0]
[111,null,"Кальвус",null,27]
[112,null,"Бабочка малавийская",null,79]
[113,null,"Бычок краснозубый",null,10]
[114,null,"Мурена перечная",null,4]
[115,null,"Неалот",null,0]
[116,null,"Мена пятнистая",null,2]
[117,null,"Бородавчатка красноморская",null,3]
[118,null,"Крылатка-зебра",null,0]
[119,null,"Тигровая рыба обыкновенная",null,0]
[120,null,"Китовая акула - альбинос",null,0]
[121,null,null,null,0]
[122,null,"Свистулька голубопятнистая",null,0]
[123,null,"Скорпенопсис дьявольский",null,5]
[124,null,"Собачка речная",null,4]
[125,null,"Скат тэниура лимма",null,3]
[126,null,"Тиляпия галилейская",null,0]
[127,null,"Убанги",null,10]
[128,null,"Тиляпия нильская",null,17]
[129,null,"Баяд",null,7]
[130,null,"Сом электрический",null,10]
[131,null,"Шильб полосатый",null,0]
[132,null,"Башир",null,38]
[133,null,"Ящероголов красный",null,14]
[134,null,"Каранг золотой",null,12]
[135,null,"Акула рифовая",null,2]
[136,null,"Группер таувина",null,4]
[137,null,"Тунец скумбриевидный",null,26]
[138,null,"Тилозур красноморский",null,1]
[139,null,"Цитарина обыкновенная",null,7]
[140,null,"Хемихромис-красавец",null,31]
[141,null,"Алеста",null,59]
[142,null,"Поллимир Исидора",null,6]
[143,null,"Тиляпия Зилля",null,18]
[144,null,"Нильский окунь",null,4]
[145,null,"Линофрина индийская",null,0]
[146,null,"Аба-аба",null,0]
[147,null,"Горгасия красноморская",null,1]
[148,null,"Вунду",null,20]
[149,null,"Акула - квагга",null,0]
[150,null,"Оксимонокант длиннорылый",null,0]
[151,null,"Макрурус вооруженный",null,0]
[152,null,"Группер белоокаймленный",null,0]
[153,null,"Синодонтис вуалевый",null,0]
[154,null,"Велифер",null,0]
[155,null,"Крокодил нильский",null,1]
[156,null,"Конус березовый",null,0]
[157,null,"Плоскоголов пятнистый",null,2]
[158,null,"Тигровая рыба нильская",null,2]
[159,null,"Луциан горбатый",null,5]
[160,null,"Конус полосатый",null,1]
[161,null,"Конус текстильный",null,2]
[162,null,"Конус мраморный",null,1]
[163,null,"Конус дворцовый",null,0]
[164,null,"Конус Мильн-Эдвардса",null,0]
[165,null,"Ящерица каймановая",null,0]
[166,null,"Ампуллярия",null,0]
[167,null,"Цихлазома мезонаута",null,0]
[168,null,"Хараки",null,1]
[169,null,"Хемиодопсис",null,0]
[170,null,"Морская свинья тихоокеанская",null,2]
[171,null,"Серцевидка",null,0]
[172,null,"Морская свинья Далля",null,0]
[173,null,"Акула плоскоголовая",null,0]
[174,null,"Запрора",null,1]
[175,null,"Пирапитинга",null,0]
[176,null,"Пираруку",null,1]
[177,null,"Пиранья стройная",null,0]
[178,null,"Пиракатинга",null,3]
[179,null,"Пиранья краснобрюхая",null,2]
[180,null,"Тукунаре",null,10]
[181,null,"Уару",null,2]
[182,null,"Тегу",null,1]
[183,null,"Таедо",null,0]
[184,null,"Тамбаку",null,1]
[185,null,"Волютопсиус каштановый",null,0]
[186,null,"Спинорог золотоплавниковый",null,0]
[187,null,"Глаукус",null,0]
[188,null,"Спинорог бело-зеленый",null,0]
[189,null,"Ликодонт яванский",null,0]
[190,null,"Полосатик Идена",null,0]
[191,null,"Бисса",null,0]
[192,null,"Луварь",null,9]
[193,null,"Краб сине-красный",null,1]
[194,null,"Каллихт",null,5]
[195,null,"Кокани",null,3]
[196,null,"Креветка северная",null,0]
[197,null,"Лиманда желтохвостая",null,2]
[198,null,"Зубатка синяя",null,2]
[199,null,"Необерингиус Фрилея",null,0]
[200,null,"Зубатка полосатая",null,1]
[201,null,"Шашень",null,13]
[202,null,"Единорог расписной",null,6]
[203,null,"Перечный слизняк",null,0]
[204,null,"Ремнезуб атлантический",null,0]
[205,null,"Краб вельветовый",null,0]
[206,null,"Тунец макрелевый",null,0]
[207,null,"Тунец малый",null,3]
[208,null,"Скат мозаичный",null,3]
[209,null,"Осьминог обыкновенный",null,1]
[210,null,"Пеламида атлантическая",null,22]
[211,null,"Краб Мраморный",null,0]
[212,null,"Кои Ямабуки Огон",null,0]
[213,null,"Чоп",null,0]
[214,null,"Усач Валецкого",null,1]
[215,null,"Итальянский усач",null,0]
[216,null,"Долгопер средиземноморский",null,8]
[217,null,"Евдошка европейская",null,0]
[218,null,"Голец альпийский",null,4]
[219,null,"Помакант рябой",null,0]
[220,null,"Сиган звездчатый",null,3]
[221,null,"Морской черт или удильщик европейский",null,1]
[222,null,"Налим средиземноморский",null,58]
[223,null,"Младица или Лосось дунайский",null,0]
[224,null,"Камбала кесслера",null,7]
[225,null,"Логгерхед",null,0]
[226,null,"Наутилус палаванский",null,0]
[227,null,"Лепоринус Фредерика",null,0]
[228,null,"Метиннис пятнистый",null,0]
[229,null,"Лепоринус зебровый",null,1]
[230,null,"Иния",null,2]
[231,null,"Колоссома",null,1]
[232,null,"Пака",null,4]
[233,null,"Пираиба",null,0]
[234,null,"Павлиний окунь ленточный",null,0]
[235,null,"Милеус ленточный",null,0]
[236,null,"Милоссома килебрюхая",null,0]
[237,null,"Аравана черная",null,0]
[238,null,"Астронотус глаздчатый",null,1]
[239,null,"Анаконда",null,0]
[240,null,"Акара голубовато-пятнистая",null,0]
[241,null,"Акарихтис Хекеля",null,0]
[242,null,"Дианема полосатохвостая",null,0]
[243,null,"Дискус Хеккеля",null,0]
[244,null,"Джакунда",null,0]
[245,null,"Биара",null,1]
[246,null,"Гидромедуза бразильская",null,0]
[247,null,"Саблезуб",null,0]
[248,null,"Утконос",null,1]
[249,null,"Рыба-капля",null,0]
[250,null,"Бельдюга Андрияшева",null,0]
[251,null,"Макропинна",null,0]
[252,null,"Черный нож",null,0]
[253,null,"Пиранья крапчатая",null,0]
[254,null,"Алепизавр",null,0]
[255,null,"Скат гладкий",null,0]
[256,null,"Кракен",null,0]
[257,null,"Павлиний окунь королевский",null,0]
[258,null,"Оринокский крокодил",null,0]
[259,null,"Акула коромандельская",null,0]
[260,null,"Нарвал",null,3]
[261,null,"Гигантская тридакна",null,1]
[262,null,"Голец чукотский",null,0]
[263,null,"Морская свинья очковая",null,0]
[264,null,"Амия",null,0]
[265,null,"Осетр белый",null,0]
[266,null,"Хендфиш",null,0]
[267,null,"Акула Мицукури",null,0]
[268,null,"Рыба-сабля",null,0]
[269,null,"Галаксия чилийская",null,0]
[270,null,"Жемчужная рыба",null,0]
[271,null,"Пайара",null,0]
[272,null,"Акула плащеносная",null,0]
[273,null,"Акула-домовой",null,0]
[274,null,"Акула светящаяся",null,0]
[275,null,"Кои Асаги",null,0]
[276,null,"Чешуеед, Плагиотрем чешуеедный",null,0]
[277,null,"Кайман широкомордый",null,0]
[278,null,"Форель апачей",null,0]
[279,null,"Губка-лира",null,0]
[280,null,"Клюворыл Шепарда",null,0]
[281,null,"Ремнезуб перуанский",null,1]
[282,null,"Тауматихт Акселя",null,1]
[283,null,"Пирарара",null,0]
[284,null,"Скат акулохвостый",null,0]
[285,null,"Носорог пятнистый",null,0]
[286,null,"Матамата",null,0]
[287,null,"Лазианциструс",null,0]
[288,null,"Панцирник мисиссипский",null,0]
[289,null,"Рак красный флоридский",null,0]
[290,null,"Панцирник длиннорылый",null,0]
[291,null,"Евдошка американская",null,0]
[292,null,"Осетр тупорылый",null,2]
[293,null,"Омар норвежский",null,0]
[294,null,"Омар европейский",null,3]
[295,null,"Скат круглый",null,2]
[296,null,"Губан пятнистый",null,1]
[297,null,"Осьминог семирукий",null,0]
[298,null,"Рыба-еж длинношипая",null,4]
[299,null,"Рыбальдо",null,0]
[300,null,"Перуанская сардина",null,2]
[301,null,"Морская свинья аргентинская",null,0]
[302,null,"Нереис",null,2]
[303,null,"Буффало большеротый",null,0]
[304,null,"Буффало малоротый",null,1]
[305,null,"Венера воздушная",null,0]
[306,null,"Японская макрель",null,5]
[307,null,"Рапана Венозная",null,1]
[308,null,"Краб снежный",null,2]
[309,null,"Акула исландская",null,3]
[310,null,"Голец белый",null,0]
[311,null,"Кои Утсури",null,0]
[312,null,null,null,0]
[313,null,"Акула копьезубая",null,0]
[314,null,"Акула большеротая",null,1]
[315,null,"Плавун южный",null,0]
[316,null,"Кит гренландский",null,0]
[317,null,"Скампи голубой",null,1]
[318,null,"Скат - кукушка",null,3]
[319,null,null,null,0]
[320,null,null,null,0]
[321,null,"Омуль баргузинский",null,0]
[322,null,null,null,0]
[323,null,"Костерь",null,1]
[324,null,null,null,0]
[325,null,null,null,0]
[326,null,null,null,0]
[327,null,null,null,0]
[328,null,null,null,0]
[329,null,"Королева Танганьики",null,0]
[330,null,"Гимнура Натальская",null,1]
[331,null,"Группер мраморный",null,1]
[332,null,"Бомбиль индоокеанский",null,4]
[333,null,"Акула рифовая белая",null,9]
[334,null,"Барракуда остроперая",null,4]
[335,null,"Спинорог масочный",null,0]
[336,null,"Спинорог синегорлый",null,1]
[337,null,"Миксина шестижаберная",null,0]
[338,null,"Группер шоколадный",null,20]
[339,null,"Марлин индо-тихоокеанский",null,0]
[340,null,"Барбурисия рыжая",null,0]
[341,null,"Омосудид",null,0]
[342,null,"Батизавр воинственный",null,0]
[343,null,"Омар алый когтистый",null,0]
[344,null,"Омар мозамбикский",null,0]
[345,null,"Барракуда желтохвостая",null,7]
[346,null,null,null,0]
[347,null,"Акула семижаберная",null,4]
[348,null,"Парапристипомоид",null,1]
[349,null,"Скопелозавр",null,0]
[350,null,"Тунец Большеглазый",null,0]
[351,null,"Краб-вампир яванский",null,20]
[352,null,"Себарау",null,111]
[353,null,"Акула головастая надувающаяся",null,0]
[354,null,"Акула вислоносая",null,0]
[355,null,"Акула щелеглазая",null,0]
[356,null,"Томан",null,28]
[357,null,"Сарган пресноводный",null,96]
[358,null,"Махсир донгнайский",null,47]
[359,null,"Гурами шоколадный",null,69]
[360,null,"Моллинезия парусная",null,30]
[361,null,"Флейторыл китайский",null,2]
[362,null,"Химера длинноносая",null,1]
[363,null,"Угорь крапчатый",null,0]
[364,null,"Тунец длиннохвостый",null,0]
[365,null,"Тунец синеперый",null,0]
[366,null,"Барракуда Хеллера",null,0]
[367,null,"Акула лимонная",null,0]
[368,null,"Акула кубинская ночная",null,0]
[369,null,"Лангуст полифагус",null,0]
[370,null,"Омар капский",null,0]
[371,null,"Саблезуб короткозубый",null,0]
[372,null,"Нетопырь длиннорылый",null,0]
[373,null,"Диплобатис гайянский",null,0]
[374,null,"Гимантолоф атлантический",null,0]
[375,null,"Опистопрокт коротконосый",null,0]
[376,null,"Базилозавр",null,0]
[377,null,"Акула кубинская кошачья",null,0]
[378,null,"Акула большеглазая песчаная",null,0]
[379,null,"Гуаса",null,0]
[380,null,"Макрель западноафриканская",null,0]
[381,null,"Акула Оустона",null,2]
[382,null,"Грамма королевская",null,2]
[383,null,"Акула острозубая песчаная",null,0]
[384,null,"Макрель китайская",null,0]
[385,null,"Акула американская кунья",null,0]
[386,null,"Устрица гигантская",null,6]
[387,null,"Бентодесма",null,0]
[388,null,"Хвостокол бахромчатый",null,5]
[389,null,"Кубера",null,1]
[390,null,"Хвостокол американский",null,1]
[391,null,"Акула-молот карибская",null,0]
[392,null,"Барракуда индийская",null,1]
[393,null,"Барракуда красная",null,2]
[394,null,"Сельдь - круглобрюшка",null,74]
[395,null,"Парапагурус",null,1]
[396,null,"Акула арабская",null,4]
[397,null,"Мобула короткоперая",null,24]
[398,null,"Краб крестообразный",null,1]
[399,null,"Мобула серповидная",null,8]
[400,null,"Барракуда большеглазая",null,3]
[401,null,"Мобула терстони",null,0]
[402,null,"Цетотерий",null,0]
[403,null,"Алаша",null,4]
[404,null,"Сцимнодалатия",null,0]
[405,null,"Акула юкатанская",null,0]
[406,null,"Отодус",null,0]
[407,null,"Антиас обыкновенный",null,15]
[408,null,"Акула мадагаскарская острозубая",null,1]
[409,null,"Акула серая короткоперая",null,2]
[410,null,"Анчоус Харденберга",null,56]
[411,null,"Нотопогон",null,7]
[412,null,"Рыба-ангел японская",null,2]
[413,null,"Тремоктопус",null,5]
[414,null,"Кохола Нуи",null,23]
[415,null,"Кохола Пигми",null,10]
[416,null,"Каранкс Тилле",null,78]
[417,null,"Каранкс широкоротый",null,41]
[418,null,"Конгер серебристый",null,15]
[419,null,"Морская змея гладкая",null,16]
[420,null,"Наутилус обыкновенный",null,23]
[421,null,"Аргонавт",null,27]
[422,null,"Мано мано",null,46]
[423,null,"Ехидна звездчатая",null,56]
[424,null,"Кудрепер длиннорылый",null,77]
[425,null,"Кохола Сперм",null,7]
[426,null,"Улуа",null,20]
[427,null,"Ау",null,12]
[428,null,"Кохола Полу",null,6]
[429,null,"Камбала павлинья",null,14]
[430,null,"Даскиллус гавайский",null,30]
[431,null,"Рыба-павлин",null,114]
[432,null,"Ехидна гвинейская",null,18]
[433,null,"Вундерпус",null,0]
[434,null,"Прометеева рыба",null,0]
[435,null,"Ехидна сулавесийская",null,0]
[436,null,"Крайт морской",null,0]
[437,null,"Ехидна одноцветная",null,0]
[438,null,"Кардинал пятнистый",null,0]
[439,null,"Конгер макроцефал",null,0]
[440,null,"Конгер обуд",null,0]
[441,null,"Морская змея Хардвика",null,0]
[442,null,"Ехидна белолобая",null,0]
[443,null,"Морская змея Белчера",null,15]
[444,null,"Неалот тихоокеанский",null,91]
[445,null,"Ластохвост спиральный",null,19]
[446,null,"Ехидна полосатая",null,17]
[447,null,"Конгер большеглазый",null,4]
[448,null,"Конгер песчаный решетчатый",null,4]
[449,null,"Полосатик Райса",null,0]
[450,null,"Черепахоголов Стейнеджера",null,4]
[451,null,"Рыба-прилипало",null,7]
[452,null,"Гребешок коричневый",null,34]
[453,null,"Змееголов коричневый",null,12]
[454,null,"Змееголов малабарский",null,8]
[455,null,"Аравана азиатская",null,27]
[456,null,"Расбора двухточечная",null,13]
[457,null,"Махсир малайский",null,35]
[458,null,"Рак пурпурный",null,9]
[459,null,"Махсир темный",null,0]
[460,null,"Усач - гаечный ключ",null,1]
[461,null,"Змееголов радужный",null,14]
[462,null,"Махсир красный",null,0]
[463,null,"Макрогнатус пятнистый",null,17]
[464,null,"Усач тигровый шестиполосый",null,3]
[465,null,"Вьюн муреновидный",null,37]
[466,null,"Гурами гигантский",null,83]
[467,null,"Нандус борнейский",null,42]
[468,null,"Акула святого Иосифа",null,0]
[469,null,"Сом Хасселя",null,28]
[470,null,"Махсир оранжевоплавниковый",null,70]
[471,null,"Лягушка суматранская",null,20]
[472,null,"Гурами Вайланта",null,59]
[473,null,"Махсир золотой",null,0]
[474,null,"Каракатица японская",null,65]
[475,null,"Конгер лорда Хоу",null,32]
[476,null,"Махи-махи",null,92]
[477,null,"Козобородка полосатая",null,62]
[478,null,"Рыба-каторжник",null,92]
[479,null,"Конгер мысовой",null,58]
[480,null,"Рыба-бабочка лимонная",null,75]
[481,null,"Кохола Поколе",null,19]
[482,null,"Кохола Вилу",null,54]
[483,null,"Конгер длинноперый",null,96]
[484,null,"Змееголов лесной",null,55]
[485,null,"Змееголов Золотая кобра",null,0]
[486,null,"Гурами гигантский-альбинос",null,0]
[487,null,"Акулка Аполлона",null,31]
[488,null,"Сом Нихофа",null,50]
[489,null,"Кит южный гладкий-альбинос",null,0]
[490,null,"Акрофизетр",null,0]
[491,null,"Богаскайа",null,0]
[492,null,"Змееголов императорский",null,0]
[493,null,"Угорь болотный азиатский",null,50]
[494,null,"Лягушка роющая",null,0]
[495,null,"Протоптер бурый",null,2]
[496,null,"Удильщик Коммерсона",null,0]
[497,null,"Сиган струйчатый",null,5]
[498,null,"Угорь собачий",null,0]
[499,null,"Группер буропятнистый",null,0]
[500,null,"Барракуда тупорылая",null,0]
[501,null,"Сом малавийский",null,2]
[502,null,"Протоптер малый",null,7]
[503,null,"Ореохромис Каронга",null,13]
[504,null,"Камерония Бургинья",null,0]
[505,null,"Шамбардия Валберга",null,4]
[506,null,"Тифобия",null,0]
[507,null,"Буртония Фоаи",null,4]
[508,null,"Аспатария пифлоидная",null,4]
[509,null,"Крылатка антенновая",null,3]
[510,null,"Кудрепер Форстера",null,8]
[511,null,"Группер желто-синий",null,0]
[512,null,"Аспатария марнои",null,0]
[513,null,"Эферия эллиптическая",null,0]
[514,null,"Акула шелковая",null,0]
[515,null,"Многопёр Эндлихера",null,0]
[516,null,"Краб монтивагус",null,2]
[517,null,"Крокодил узкорылый",null,0]
[518,null,"Дистиходус шестиполосый",null,5]
[519,null,"Кампанго",null,4]
[520,null,"Акула темная",null,0]
[521,null,"Алект вымпельный",null,0]
[522,null,"Акула большеносая",null,0]
[523,null,"Краб малавийский голубой",null,0]
[524,null,"Краб танганьикский",null,3]
[525,null,"Акула мадагаскарская",null,0]
[526,null,"Акула - небрия",null,0]
[527,null,"Группер крупнопятнистый",null,1]
[528,null,null,null,9]
[529,null,"Плоскоголов бахромчатый",null,5]
[530,null,"Спинорог голубой",null,0]
[531,null,"Хирург белогрудый",null,1]
[532,null,"Акула пилозубая",null,0]
[533,null,"Сердеронг чернопятнистый",null,0]
[534,null,"Акула пелагическая лисья",null,0]
[535,null,"Окунь танганьикский",null,3]
[536,null,"Окунь большеглазый",null,11]
[537,null,"Гетеротис",null,8]
[538,null,"Тиляпия красногрудая",null,23]
[539,null,"Тиляпия мозамбикская",null,0]
[540,null,"Нодулария боеми",null,1]
[541,null,"Цихлида тупорылая",null,13]
[542,null,"Цихлида гигантская",null,2]
[543,null,"Окунь гладкий",null,49]
[544,null,"Мбамба",null,0]
[545,null,"Лаванда Мбуна",null,37]
[546,null,"Офтальмотиляпия носатая",null,4]
[547,null,"Лабидохромис Хонги",null,2]
[548,null,"Лабеотрофеус обыкновенный",null,9]
[549,null,"Лабидохромис большой",null,10]
[550,null,"Летрин длиннорылый",null,1]
[551,null,"Фея перламутровая",null,3]
[552,null,"Сардина танганьикская",null,55]
[553,null,"Принцесса Бурунди",null,0]
[554,null,"Псевдотрофеус Демасони",null,0]
[555,null,"Шпрот таганьикский",null,5]
[556,null,"Сом ширентис",null,0]
[557,null,"Сомик - кукушка",null,1]
[558,null,"Сом танганьикский",null,0]
[559,null,"Меланохромис Чипока",null,20]
[560,null,"Солидус",null,0]
[561,null,"Цихлида Ливингстона",null,11]
[562,null,"Мутела",null,7]
[563,null,"Цихлида-дельфин",null,0]
[564,null,"Стигматохромис вуди",null,0]
[565,null,"Трофеус звездчатый",null,0]
[566,null,"Тигровая рыба танзанийская",null,2]
[567,null,"Окунь вилохвостый",null,6]
[568,null,"Мбенга",null,0]
[569,null,"Сом мраморный",null,5]
[570,null,"Золотой леопард",null,3]
[571,null,"Аухеногланис",null,27]
[572,null,"Нимбохромис полистигма",null,2]
[573,null,"Коелатура мозамбикская",null,4]
[574,null,"Цихлида - колибри",null,14]
[575,null,"Мормир бутылконосый",null,19]
[576,null,"Гуативера",null,12]
[577,null,"Тарпон атлантический",null,0]
[578,null,"Звездочет крапчатый",null,28]
[579,null,"Акула карибская длиннорылая",null,41]
[580,null,"Гипоплектрус",null,20]
[581,null,"Этмоптерус серый",null,18]
[582,null,"Кабрилья",null,62]
[583,null,"Марлин атлантический",null,7]
[584,null,"Гуачанчо",null,11]
[585,null,"Акула флоридская",null,45]
[586,null,"Корифена малая",null,0]
[587,null,"Акула надувающаяся",null,0]
[588,null,"Мероу красный",null,1]
[589,null,"Черна бурополосая",null,28]
[590,null,"Гаррупа-мармита",null,1]
[591,null,"Этелис королевский",null,24]
[592,null,"Копьеносец малый",null,4]
[593,null,"Кардинал",null,0]
[594,null,"Амфитретус пелагический",null,0]
[595,null,"Гримпотевтис тихоокеанский",null,0]
[596,null,"Бычерыл американский",null,5]
[597,null,null,null,0]
[598,null,"Макрель испанская",null,4]
[599,null,"Акула австралийская головастая",null,0]
[600,null,"Кобия",null,7]
[601,null,"Акула - нянька усатая",null,11]
[602,null,"Макрель широкополосая",null,0]
[603,null,"Макрель малагасийская",null,0]
[604,null,"Макрель квинслендская",null,0]
[605,null,"Макрель продольно-полосатая",null,0]
[606,null,"Макрель австралийская",null,0]
[607,null,"Акулка карликовая",null,0]
[608,null,"Кабра-мора",null,18]
[609,null,"Иглобрюх-попугайчик",null,14]
[610,null,"Кабуча",null,87]
[611,null,"Фундулюс",null,52]
[612,null,"Цапатеро-чакета",null,13]
[613,null,"Группер темный",null,17]
[614,null,"Скватина американская",null,13]
[615,null,"Этмоптерус Шульца",null,13]
[616,null,"Амфихт",null,2]
[617,null,"Скар широколобый",null,2]
[618,null,"Скат пятнистый",null,0]
[619,null,"Скар рубиновый",null,30]
[620,null,"Сарган крокодиловый",null,12]
[621,null,"Скар двухцветный",null,1]
[622,null,"Хвостокол широкохвостый",null,0]
[623,null,"Элагат",null,0]
[624,null,"Спинорог позолоченый",null,0]
[625,null,"Скат-орляк белоточечный",null,0]
[626,null,"Сладкогуб гигантский",null,0]
[627,null,"Каранкс черный",null,0]
[628,null,"Мурена - зебра",null,1]
[629,null,"Группер шестиполосый",null,0]
[630,null,"Бротула многоусая",null,0]
[631,null,"Вариола белокаемчатая",null,0]
[632,null,"Носорог однорогий",null,0]
[633,null,"Платакс - нетопырь",null,1]
[634,null,"Носорог безрогий",null,0]
[635,null,"Мурена желторотая",null,0]
[636,null,"Мурена ленточная",null,1]
[637,null,null,null,0]
[638,null,"Снэппер низкотелый",null,0]
[639,null,"Макрель бразильская",null,18]
[640,null,"Снэппер нитеперый",null,84]
[641,null,"Скат Аддисона",null,0]
[642,null,"Акула - пилохвост",null,0]
[643,null,"Трахинот Кеннеди",null,2]
[644,null,"Трахинот круглый",null,0]
[645,null,"Трахинот большой",null,19]
[646,null,"Макрель-Кавалла",null,19]
[647,null,"Макрель западноатлантическая",null,0]
[648,null,"Группер индоокеанский малоглазый",null,0]
[649,null,"Акула гладкозубая",null,0]
[650,null,"Акула-нянька короткохвостая",null,0]
[651,null,"Ремнезуб Блэнвиля",null,0]
[652,null,"Скат-орляк изысканный",null,0]
[653,null,"Минога каспийская",null,0]
[654,null,"Подкаменщик пестроногий",null,0]
[655,null,"Мобула японская",null,0]
[656,null,"Мурена европейская",null,0]
[657,null,"Дораб",null,0]
[658,null,"Сердцевидка съедобная",null,2]
[659,null,"Краб съедобный",null,1]
[660,null,"Поллак",null,12]
[661,null,"Тюрбо",null,4]
[662,null,"Ротан",null,60]
[663,null,"Окунь алеутский",null,18]
[664,null,"Окунь северный морской",null,3]
[665,null,"Вырезуб",null,4]
[666,null,"Клювач северный",null,31]
[667,null,"Бычок-кругляк",null,35]
[668,null,"Севрюга",null,2]
[669,null,"Сом",null,50]
[670,null,"Ершоватка",null,7]
[671,null,"Терпуг одноперый",null,4]
[672,null,"Трахира Хоплиас, Малабарский хоплиас",null,5]
[673,null,"Маколор черный",null,72]
[674,null,"Фикус изящный",null,0]
[675,null,"Толстолобик белый",null,38]
[676,null,"Линь",null,10]
[677,null,"Мригал",null,10]
[678,null,"Краппи белый",null,26]
[679,null,"Карп индийский",null,2]
[680,null,"Окунь пятнистый",null,110]
[681,null,"Сомик желтый",null,9]
[682,null,"Сомик канальный",null,18]
[683,null,"Ауха",null,70]
[684,null,"Рак сигнальный",null,0]
[685,null,"Минога огайская",null,7]
[686,null,"Сазан",null,49]
[687,null,"Каранкс большой",null,1]
[688,null,"Марлин полосатый",null,15]
[689,null,"Терпуг зайцеголовый",null,7]
[690,null,"Терпуг бурый",null,25]
[691,null,"Луциан темно-бурый",null,8]
[692,null,"Группер картофельный",null,12]
[693,null,"Тунец голубой",null,18]
[694,null,"Марлин голубой",null,24]
[695,null,"Группер томатный",null,6]
[696,null,"Парусник",null,14]
[697,null,"Берш",null,87]
[698,null,"Хариус ленский",null,5]
[699,null,"Пиранья обыкновенная",null,50]
[700,null,"Судак",null,45]
[701,null,"Елец-андруга",null,10]
[702,null,"Быстрянка",null,7]
[703,null,"Синец",null,32]
[704,null,"Краснопер мелкочешуйчатый",null,47]
[705,null,"Валек",null,8]
[706,null,"Форель тигровая",null,2]
[707,null,"Волосозуб",null,4]
[708,null,"Гольян Чекановского",null,20]
[709,null,"Хариус сибирский",null,6]
[710,null,"Елец",null,68]
[711,null,"Жерех",null,43]
[712,null,"Нерка",null,19]
[713,null,"Краб красный мангровый",null,0]
[714,null,"Тонна ленточная",null,0]
[715,null,"Дрейссена речная",null,1]
[716,null,"Судак канадский",null,40]
[717,null,"Желтощек",null,7]
[718,null,"Сельдь американская",null,100]
[719,null,"Белуга черноморская",null,0]
[720,null,"Адамуссиум",null,3]
[721,null,"Патагонский лобстер",null,1]
[722,null,"Змеиная макрель",null,5]
[723,null,"Лещ морской обыкновенный",null,53]
[724,null,"Косатка-скрипун",null,64]
[725,null,"Мальма лабынкырская",null,20]
[726,null,"Краснопёр монгольский",null,45]
[727,null,"Угорь",null,97]
[728,null,"Топь",null,36]
[729,null,"Косатка уссурийская",null,79]
[730,null,"Змееголов",null,1]
[731,null,"Рак речной",null,7]
[732,null,"Верхогляд",null,9]
[733,null,"Сом солдатова",null,48]
[734,null,"Навага тихоокеанская",null,71]
[735,null,"Горбуша южноамериканская",null,8]
[736,null,"Троегуб",null,46]
[737,null,"Сиг амурский",null,7]
[738,null,"Микижа чилийская",null,13]
[739,null,"Рипус",null,15]
[740,null,"Амур черный",null,4]
[741,null,"Скат Йенсена",null,3]
[742,null,"Ерш-носарь",null,3]
[743,null,"Щука амурская",null,55]
[744,null,"Скат короткохвостый",null,9]
[745,null,"Ореховидка тонкая",null,1]
[746,null,"Густера",null,72]
[747,null,"Голец якутский",null,0]
[748,null,"Скат полярный",null,17]
[749,null,"Тасманский рак",null,3]
[750,null,"Карп гигантский",null,5]
[751,null,"Скат Монтегю",null,7]
[752,null,"Губан радужный",null,10]
[753,null,"Перуанская сериолелла",null,8]
[754,null,"Тасманский пескарь",null,1]
[755,null,"Рыба-лира",null,1]
[756,null,"Ленок острорылый",null,21]
[757,null,"Конголли",null,3]
[758,null,"Буффало черный",null,5]
[759,null,"Золотистая скорпена",null,28]
[760,null,"Инанга",null,85]
[761,null,"Камбала зеленая",null,1]
[762,null,"Калинка",null,57]
[763,null,"Каракатица лечебная",null,0]
[764,null,"Акула звездчатошипая",null,4]
[765,null,"Вьюн",null,36]
[766,null,"Краб четырехугольный волосатый",null,0]
[767,null,"Вампир адский",null,1]
[768,null,"Краб травяной",null,1]
[769,null,"Усач днепровский",null,6]
[770,null,"Акула Сейла",null,1]
[771,null,"Акула-бык",null,8]
[772,null,"Морская собачка",null,1]
[773,null,"Угорь короткоребристый",null,64]
[774,null,"Форель мраморная",null,5]
[775,null,"Кижуч",null,38]
[776,null,"Щука красноперая",null,11]
[777,null,"Архитеутис",null,15]
[778,null,"Тригла желтая",null,23]
[779,null,"Форель золотая",null,1]
[780,null,"Щука травяная",null,0]
[781,null,"Осетр русский",null,56]
[782,null,"Шемая черноморская",null,22]
[783,null,"Минога морская",null,3]
[784,null,"Голец усатый",null,10]
[785,null,"Осетр атлантический",null,98]
[786,null,"Угорь речной американский",null,16]
[787,null,"Кашорро краснохвостый",null,5]
[788,null,"Лосось атлантический",null,3]
[789,null,"Тунец желтопёрый",null,3]
[790,null,"Тартаруга",null,5]
[791,null,"Треска восточная",null,30]
[792,null,"Керчак-яок",null,19]
[793,null,"Лунник",null,2]
[794,null,"Минтай",null,10]
[795,null,"Рыба-лиса",null,16]
[796,null,"Пятнистая озерная лягушка",null,1]
[797,null,"Галаксия пятнистая",null,15]
[798,null,"Императорский ангел",null,0]
[799,null,"Группер корраловый красный",null,0]
[800,null,"Корюшка",null,55]
[801,null,"Бутылконос северный",null,17]
[802,null,"Косатка",null,44]
[803,null,"Сардина европейская",null,11]
[804,null,"Кефаль-губач",null,5]
[805,null,"Краб пресноводный",null,12]
[806,null,"Кашалот карликовый",null,0]
[807,null,"Хариус восточносибирский",null,7]
[808,null,"Гребешок многообразный",null,2]
[809,null,"Тонна гигантская",null,0]
[810,null,"Окунь красноглазый",null,20]
[811,null,"Солнечник обыкновенный",null,4]
[812,null,"Окунь каменный",null,37]
[813,null,"Сомик американский",null,20]
[814,null,"Байкальский осетр",null,5]
[815,null,"Широколобка темная",null,15]
[816,null,"Хариус байкальский Белый",null,8]
[817,null,"Елец сибирский",null,22]
[818,null,"Омуль маломорский",null,10]
[819,null,"Веслонос",null,9]
[820,null,"Пелядь",null,28]
[821,null,"Сомик голубой",null,16]
[822,null,"Сиг",null,94]
[823,null,"Сом амурский",null,99]
[824,null,"Краппи черный",null,60]
[825,null,"Окунь прибрежный",null,25]
[826,null,"Окунь песчаный",null,92]
[827,null,"Окунь большеротый",null,22]
[828,null,"Окунь ушастый",null,16]
[829,null,"Сима южноамериканская",null,18]
[830,null,"Форель озерная",null,96]
[831,null,"Щучка Хьюжета",null,12]
[832,null,"Дорадо золотой",null,0]
[833,null,"Лягушка озерная",null,3]
[834,null,"Пагр красный",null,1]
[835,null,"Тунец южный",null,2]
[836,null,"Акула серо-бурая",null,14]
[837,null,"Спинорог точечный",null,0]
[838,null,"Кумжа южноамериканская",null,41]
[839,null,"Бикуда",null,41]
[840,null,"Рыбец",null,23]
[841,null,"Хариус байкальский черный",null,8]
[842,null,"Ерш",null,87]
[843,null,"Подкаменщик",null,28]
[844,null,"Чавыча южноамериканская",null,105]
[845,null,"Лосось южноамериканский",null,76]
[846,null,"Карась якутский",null,50]
[847,null,"Кижуч южноамериканский",null,20]
[848,null,"Акула-молот обыкновенная",null,8]
[849,null,"Полосатик карликовый",null,7]
[850,null,"Лещ морской белый",null,77]
[851,null,"Рыба-луна",null,10]
[852,null,"Сельдь черноморская",null,10]
[853,null,"Солнечник синежаберный",null,27]
[854,null,"Сарган",null,0]
[855,null,"Кефаль-лобан",null,42]
[856,null,"Налим",null,53]
[857,null,"Новозеландская мерлуза",null,5]
[858,null,"Берикс австралийский",null,79]
[859,null,"Дорадо",null,13]
[860,null,"Кои Платинум Огон",null,0]
[861,null,"Омуль северобайкальский",null,105]
[862,null,"Акула голубая",null,79]
[863,null,"Ледяная рыба",null,19]
[864,null,"Манта",null,30]
[865,null,"Акула-лисица",null,23]
[866,null,"Камбала морская",null,21]
[867,null,"Щука черная",null,10]
[868,null,"Голец - кристивомер",null,48]
[869,null,"Щука-маскинонг",null,9]
[870,null,"Сплэйк",null,45]
[871,null,"Лаврак белый",null,76]
[872,null,"Нейва",null,15]
[873,null,"Пыжьян",null,54]
[874,null,"Лосось Кларка",null,7]
[875,null,"Микижа",null,66]
[876,null,"Палия американская",null,11]
[877,null,"Лещ морской кинжальный",null,52]
[878,null,"Макрель голубая",null,96]
[879,null,"Глосса",null,4]
[880,null,"Стерлядь",null,101]
[881,null,"Акула-молот бронзовая",null,8]
[882,null,"Палтус атлантический",null,12]
[883,null,"Мольва",null,47]
[884,null,"Зеленушка",null,38]
[885,null,"Крокодил гребнистый",null,92]
[886,null,"Палия южноамериканская",null,27]
[887,null,"Кит горбатый-альбинос",null,28]
[888,null,"Нерпа байкальская",null,4]
[889,null,"Сом Суруби",null,17]
[890,null,"Голец Таранца",null,2]
[891,null,"Осетр якутский",null,1]
[892,null,"Горбуша",null,98]
[893,null,"Кунджа",null,69]
[894,null,"Стерлядь сибирская",null,2]
[895,null,"Омуль чивыркуйский",null,2]
[896,null,"Щука глубинная",null,8]
[897,null,"Голец черского",null,14]
[898,null,"Сомик леопардовый",null,0]
[899,null,"Павлиний окунь-бабочка",null,9]
[900,null,"Голец Леванидова",null,67]
[901,null,"Хариус европейский",null,16]
[902,null,"Кит горбатый",null,54]
[903,null,"Моллюск",null,36]
[904,null,"Чавыча",null,38]
[905,null,"Хризиптера сине-желтая",null,0]
[906,null,"Акула галапагосская",null,0]
[907,null,"Губан колючий",null,12]
[908,null,"Карась морской",null,60]
[909,null,"Чехонь",null,36]
[910,null,"Белуга",null,1]
[911,null,"Амур белый",null,109]
[912,null,"Кета",null,23]
[913,null,"Мальма",null,7]
[914,null,"Форель радужная",null,79]
[915,null,"Бестер",null,3]
[916,null,"Палия",null,0]
[917,null,"Подкаменщик сибирский",null,12]
[918,null,"Шип",null,75]
[919,null,"Форель ручьевая",null,54]
[920,null,"Форель севанская",null,16]
[921,null,"Голавль",null,5]
[922,null,"Гольян озерный",null,27]
[923,null,"Моторо",null,7]
[924,null,"Спинорог расписной",null,7]
[925,null,"Каракатица расписная",null,7]
[926,null,"Спинорог заплаточный",null,3]
[927,null,"Каури-монета",null,1]
[928,null,"Ваху",null,10]
[929,null,"Катран",null,24]
[930,null,"Окунь морской золотистый",null,72]
[931,null,"Акула мелкозубая",null,3]
[932,null,"Пиранья ромбовидная",null,48]
[933,null,"Ангел лирохвостый",null,15]
[934,null,"Рыба-бекас",null,2]
[935,null,"Рыба-наполеон",null,21]
[936,null,"Спинорог Пикассо",null,19]
[937,null,"Аротрон белоточечный",null,6]
[938,null,"Пескарь",null,53]
[939,null,"Клюворыл",null,42]
[940,null,"Идол мавританский",null,5]
[941,null,"Нельма",null,6]
[942,null,"Муксун",null,4]
[943,null,"Тунец длинноперый",null,8]
[944,null,"Луциан чернохвостый",null,19]
[945,null,"Губан носатый",null,8]
[946,null,"Клоун мавританский",null,17]
[947,null,"Покрышка старая",null,64]
[948,null,"Акула темноперая",null,0]
[949,null,"Хирург флаговый",null,22]
[950,null,"Сапог рваный",null,79]
[951,null,"Скат акулий",null,0]
[952,null,"Пикша",null,91]
[953,null,"Окунь - клювач",null,13]
[954,null,"Сайка",null,36]
[955,null,"Окунь морской норвежский",null,65]
[956,null,"Зубарик обыкновенный",null,60]
[957,null,"Акула - собака",null,38]
[958,null,"Треска атлантическая",null,38]
[959,null,"Зубатка пятнистая",null,45]
[960,null,"Сайда",null,33]
[961,null,"Путассу северная",null,21]
[962,null,"Камнеточец",null,0]
[963,null,"Чилим",null,1]
[964,null,"Барабулька",null,18]
[965,null,"Хирург зебровый",null,0]
[966,null,"Рыба-белка",null,0]
[967,null,"Аротрон колючий",null,1]
[968,null,"Луциан королевский",null,11]
[969,null,"Луциан розовый",null,2]
[970,null,"Гимносарда",null,0]
[971,null,"Луциан императорский красный",null,2]
[972,null,"Кальмар гигантский",null,0]
[973,null,"Чебак",null,11]
[974,null,"Чукучан",null,1]
[975,null,"Уклейка",null,0]
[976,null,"Востробрюшка уссурийская",null,2]
[977,null,"Шемая",null,0]
[978,null,"Ряпушка сибирская",null,0]
[979,null,"Масляная рыба",null,6]
[980,null,"Черт лабынкырский",null,3]
[981,null,"Даллия",null,1]
[982,null,"Группер стройный",null,6]
[983,null,"Целакант коморский",null,0]
[984,null,"Улитка",null,0]
[985,null,"Сиг-востряк",null,5]
[986,null,"Минога тихоокеанская",null,0]
[987,null,"Ряпушка переславская",null,0]
[988,null,"Морская лисица",null,12]
[989,null,"Горбыль",null,0]
[990,null,"Минога украинская",null,0]
[991,null,"Кумжа черноморская",null,1]
[992,null,"Омуль пенжинский",null,2]
[993,null,"Вариола радужная",null,1]
[994,null,"Черепаха кожистая",null,0]
[995,null,"Ангел черноплавничный",null,0]
[996,null,"Краб кокосовый",null,5]
[997,null,"Рыба-бабочка сомалийская",null,9]
[998,null,"Толстолобик пестрый",null,47]
[999,null,"Жерех - лысач",null,22]
[1000,null,"Альбула",null,0]
[1001,null,"Мазутный двухголов",null,0]
[1002,null,"Хариус лабынкырский",null,2]
[1003,null,"Угай мелкочешуйный",null,10]
[1004,null,"Угай крупночешуйчатый",null,6]
[1005,null,"Мойва",null,3]
[1006,null,"Луциан синеполосый",null,7]
[1007,null,"Калуга",null,6]
[1008,null,"Сомик черный",null,4]
[1009,null,"Палия лудожная",null,0]
[1010,null,"Храмуля",null,0]
[1011,null,"Сайра атлантическая",null,2]
[1012,null,"Пинагор",null,8]
[1013,null,"Колюшка трехиглая",null,21]
[1014,null,"Тарань",null,16]
[1015,null,"Черепаха болотная",null,1]
[1016,null,"Окунь малый",null,51]
[1017,null,"Хвостокол Мацубары",null,0]
[1018,null,"Кит серый",null,8]
[1019,null,"Сладкогуб пятнистый",null,1]
[1020,null,"Дасцилл зебровидный",null,9]
[1021,null,"Акула ночная",null,4]
[1022,null,"Кузовок-кубик",null,7]
[1023,null,"Кэтфиш",null,1]
[1024,null,"Колюшка девятииглая",null,79]
[1025,null,"Кутум",null,0]
[1026,null,"Лосось каспийский",null,0]
[1027,null,"Ряпушка",null,4]
[1028,null,"Тугун",null,0]
[1029,null,"Орфа",null,0]
[1030,null,"Конь пестрый",null,3]
[1031,null,"Линь золотистый",null,0]
[1032,null,"Сельдь каспийская",null,4]
[1033,null,"Черепаха каспийская",null,35]
[1034,null,"Акула белоглазая",null,3]
[1035,null,"Тракакса",null,0]
[1036,null,"Осетр амурский",null,3]
[1037,null,"Даватчан",null,51]
[1038,null,"Длиннорылый полурыл",null,1]
[1039,null,"Арапаима",null,5]
[1040,null,"Осман голый",null,14]
[1041,null,"Луфарь",null,0]
[1042,null,"Коаро",null,6]
[1043,null,"Австралийский анчоус",null,23]
[1044,null,"Малакост черный",null,0]
[1045,null,"Галаксия тасманская",null,0]
[1046,null,"Австралийский шишечник",null,0]
[1047,null,"Спинорог Розовохвостый",null,0]
[1048,null,"Барамунди",null,0]
[1049,null,"Акула китовая",null,5]
[1050,null,"Акула черноперая",null,1]
[1051,null,"Мальма южная",null,1]
[1052,null,"Краб-стригун",null,0]
[1053,null,"Краб мохнаторукий японский",null,0]
[1054,null,"Мерценария стимпсона",null,0]
[1055,null,"Краб пятиугольный волосатый",null,0]
[1056,null,"Краб-стригун японский",null,0]
[1057,null,"Осетр сахалинский",null,0]
[1058,null,"Карась мухтельский",null,0]
[1059,null,"Кальмар командорский",null,0]
[1060,null,"Кальмар тихоокеанский",null,0]
[1061,null,"Саратога",null,0]
[1062,null,"Аррип малый",null,5]
[1063,null,"Спинорог голубоперый",null,0]
[1064,null,"Лещ черный южный",null,1]
[1065,null,"Спинорог желтомордый",null,0]
[1066,null,"Мангровый джек",null,2]
[1067,null,"Энгидрина носатая",null,0]
[1068,null,"Окунь золотой",null,0]
[1069,null,"Мелкозубый пилорыл",null,0]
[1070,null,"Пигоплит, Королевский ангел",null,21]
[1071,null,"Крокодил Джонстона",null,0]
[1072,null,"Брызгун крупнопятнистый",null,0]
[1073,null,"Спинорог Краснозубый",null,0]
[1074,null,"Спинорог оранжевополосый",null,33]
[1075,null,"Бородавчатка",null,0]
[1076,null,"Стромбус волнистый",null,0]
[1077,null,"Двухцветная пеламида",null,0]
[1078,null,"Комета, Каллоплезиопс",null,3]
[1079,null,"Ворчун крапчатый",null,0]
[1080,null,"Гребешок лунный",null,1]
[1081,null,"Угольная рыба",null,4]
[1082,null,"Акула узкозубая",null,0]
[1083,null,"Морской ворон",null,3]
[1084,null,"Сиг хадары",null,8]
[1085,null,"Узо-угай",null,2]
[1086,null,"Кардиум реснитчатый",null,0]
[1087,null,"Серрипес замечательный",null,0]
[1088,null,"Микижа шантарская",null,0]
[1089,null,"Морской монах",null,0]
[1090,null,"Макрурус малоглазый",null,0]
[1091,null,"Рак пятнистый",null,1]
[1092,null,"Головастик гигантский",null,1]
[1093,null,"Мидия",null,3]
[1094,null,"Рапана жилковатая",null,0]
[1095,null,"Судак глубинный",null,1]
[1096,null,"Зубатка дальневосточная",null,0]
[1097,null,"Акула лососевая",null,1]
[1098,null,"Палия кряжевая",null,0]
[1099,null,"Прудовик",null,0]
[1100,null,"Тасманский краб",null,0]
[1101,null,"Стромбус Королевский",null,1]
[1102,null,"Мактра китайская",null,0]
[1103,null,"Перонидия жилковатая",null,0]
[1104,null,"Гребешок свифта",null,0]
[1105,null,"Каллитака Адамса",null,0]
[1106,null,"Петушок",null,0]
[1107,null,"Черепаха зеленая",null,0]
[1108,null,"Ябби",null,0]
[1109,null,"Макома широкая",null,0]
[1110,null,"Лямбис подагрический",null,1]
[1111,null,"Морская звезда красношипая",null,0]
[1112,null,"Фромия элегантная",null,0]
[1113,null,"Голубая линкия",null,1]
[1114,null,"Офиура полосатая",null,0]
[1115,null,"Гребешок коралловый",null,0]
[1116,null,"Мактра сахалинская",null,0]
[1117,null,"Гребешок бело-розовый",null,0]
[1118,null,"Конус Географический",null,0]
[1119,null,"Глицимерис приморский",null,0]
[1120,null,"Усач обыкновенный",null,7]
[1121,null,"Оникия",null,0]
[1122,null,"Аррип Большой",null,0]
[1123,null,"Хапаку",null,2]
[1124,null,"Гонатус",null,0]
[1125,null,"Патагонский гребешок",null,0]
[1126,null,"Краб королевский",null,19]
[1127,null,"Тунец полосатый",null,1]
[1128,null,"Устрица",null,2]
[1129,null,"Перуанский ансчоус",null,13]
[1130,null,"Камбала полосатая",null,3]
[1131,null,"Акула азиатская кунья",null,1]
[1132,null,"Желтохвост",null,36]
[1133,null,"Акула японская бычья",null,0]
[1134,null,"Скалозуб бурый",null,0]
[1135,null,"Острорылый крокодил",null,28]
[1136,null,"Омуль",null,14]
[1137,null,"Кои Сёва",null,0]
[1138,null,"Перуанская ставрида",null,29]
[1139,null,"Омуль байкальский",null,0]
[1140,null,"Черепаха саванная",null,0]
[1141,null,"Пиранья вымпельная",null,1]
[1142,null,"Морской орел пятнистый",null,16]
[1143,null,"Аравана серебристая",null,9]
[1144,null,"Попока",null,13]
[1145,null,"Осетр сибирский",null,8]
[1146,null,"Группер Квинслендский",null,0]
[1147,null,"Корюшка зубатая азиатская",null,22]
[1148,null,"Пузанок",null,4]
[1149,null,"Морской финик",null,1]
[1150,null,"Кит карликовый",null,18]
[1151,null,"Патагонский клыкач",null,4]
[1152,null,"Чилийская пеламида",null,11]
[1153,null,"Лемонема",null,0]
[1154,null,"Звезда-подушка",null,0]
[1155,null,"Гринда короткоплавниковая",null,0]
[1156,null,"Акула зебровая",null,1]
[1157,null,"Валаамка",null,0]
[1158,null,"Лудога",null,14]
[1159,null,"Камбала звездчатая",null,1]
[1160,null,"Макруронус новозеландский",null,1]
[1161,null,"Акула мальгашская",null,0]
[1162,null,"Акула пепельная",null,22]
[1163,null,"Пятнистый воббегонг",null,1]
[1164,null,"Каранкс синеплавниковый",null,18]
[1165,null,"Акула белая",null,18]
[1166,null,"Кефаль алмазная",null,3]
[1167,null,"Акула кошачья",null,14]
[1168,null,"Акула белоперая",null,1]
[1169,null,"Сериола большая",null,2]
[1170,null,"Флейторыл",null,2]
[1171,null,"Акула длиннокрылая",null,3]
[1172,null,"Букцинум",null,1]
[1173,null,"Менёк",null,2]
[1174,null,"Осетр персидский",null,14]
[1175,null,"Гребешок приморский",null,0]
[1176,null,"Вобла",null,41]
[1177,null,"Группер леопардовый",null,36]
[1178,null,"Анчоус японский",null,83]
[1179,null,"Промикропс",null,0]
[1180,null,"Акула песчаная",null,0]
[1181,null,"Бельдюга восточная",null,1]
[1182,null,"Мактромерис изменчивый",null,3]
[1183,null,"Акула полярная",null,26]
[1184,null,"Сима",null,25]
[1185,null,"Лиманда длиннорылая",null,6]
[1186,null,"Губан гребенчатый",null,3]
[1187,null,"Скат лучевой",null,3]
[1188,null,"Песчанка тихоокеанская",null,3]
[1189,null,"Пирапутанга",null,3]
[1190,null,"Апистограмма факельная",null,17]
[1191,null,"Сомик оливковый",null,2]
[1192,null,"Окунь-пират",null,0]
[1193,null,"Багре гури",null,2]
[1194,null,"Каллиста короткосифонная",null,6]
[1195,null,"Краб колючий",null,0]
[1196,null,"Птеригоплихт парчовый",null,9]
[1197,null,"Абрамитес мраморный",null,1]
[1198,null,"Мускулус",null,0]
[1199,null,"Чир",null,11]
[1200,null,"Гребешок исландский",null,0]
[1201,null,"Налим тонкохвостый",null,18]
[1202,null,"Пузанок дунайский",null,48]
[1203,null,"Акула индонезийская",null,5]
[1204,null,"Мандаринка",null,3]
[1205,null,"Пескарь ленский",null,0]
[1206,null,"Группер павлиний",null,19]
[1207,null,"Красный конгрио",null,0]
[1208,null,"Ремнезуб Грея",null,36]
[1209,null,"Лещ восточно-сибирский",null,7]
[1210,null,"Шабути",null,4]
[1211,null,"Белоглазка",null,41]
[1212,null,"Кашалот-альбинос",null,4]
[1213,null,"Перуанская макрель",null,3]
[1214,null,"Рак длиннопалый",null,0]
[1215,null,"Химера европейская",null,5]
[1216,null,"Краб камчатский",null,1]
[1217,null,"Палтус синекорый",null,1]
[1218,null,"Подуст",null,19]
[1219,null,"Пеленгас",null,8]
[1220,null,"Терпуг Стеллера",null,2]
[1221,null,"Хирург желтоплавничный",null,29]
[1222,null,"Камбала двухлинейная",null,0]
[1223,null,"Шпрот европейский",null,12]
[1224,null,"Пагелл красный",null,24]
[1225,null,"Кои Оренжи Огон",null,0]
[1226,null,"Палтус стрелозубый",null,10]
[1227,null,"Кои Кохаку",null,0]
[1228,null,"Акула серо-голубая",null,19]
[1229,null,"Мурена ячеистая",null,7]
[1230,null,"Миксина атлантическая",null,8]
[1231,null,"Владиславия",null,5]
[1232,null,"Морской еж",null,46]
[1233,null,"Ламна или Акула сельдевая атлантическая",null,1]
[1234,null,"Дискус зеленый",null,3]
[1235,null,"Группер странствующий",null,0]
[1236,null,"Кайман черный",null,1]
[1237,null,"Багре негро",null,14]
[1238,null,"Рогатка",null,10]
[1239,null,"Марлин черный",null,34]
[1240,null,"Голец-усач сибирский",null,0]
[1241,null,"Золотистая сериола",null,13]
[1242,null,"Осьминог синекольчатый",null,1]
[1243,null,"Шортбилл",null,7]
[1244,null,"Сом-плоскоголовик",null,0]
[1245,null,"Кузовок рогатый",null,0]
[1246,null,"Угорь электрический",null,0]
[1247,null,"Мако длинноплавниковый",null,8]
[1248,null,"Скат-орляк австралийский",null,0]
[1249,null,"Мерланг",null,59]
[1250,null,"Гребешок раскрашенный",null,0]
[1251,null,"Палтус белокорый",null,5]
[1252,null,"Австралийский колючепёр",null,2]
[1253,null,"Лоцман",null,16]
[1254,null,"Кальмар обыкновенный",null,2]
[1255,null,"Нанностом Бекфорда",null,31]
[1256,null,"Лиманда сахалинская",null,5]
[1257,null,"Рыба-лягушка",null,23]
[1258,null,"Кайман крокодиловый",null,3]
[1259,null,"Южная путассу",null,0]
[1260,null,"Сфирена мелкочешуйная",null,164]
[1261,null,"Омуль посольский",null,185]
[1262,null,"Широколобка красная",null,144]
[1263,null,"Цапатеро",null,131]
[1264,null,"Акула шестижаберная",null,159]
[1265,null,"Таймень",null,118]
[1266,null,"Финта",null,129]
[1267,null,"Носорог Вламинга",null,229]
[1268,null,"Гольян Лаговского",null,125]
[1269,null,"Сиган яванский",null,168]
[1270,null,"Карп зеркальный",null,219]
[1271,null,"Карп голый",null,229]
[1272,null,"Лаврак полосатый",null,191]
[1273,null,"Апсил зубатый",null,141]
[1274,null,"Ехидна грациозная",null,115]
[1275,null,"Окунь малоротый",null,207]
[1276,null,"Конгер японский",null,174]
[1277,null,"Снэк",null,216]
[1278,null,"Перка",null,152]
[1279,null,"Скумбрия атлантическая",null,191]
[1280,null,"Язь",null,183]
[1281,null,"Акула гигантская",null,182]
[1282,null,"Лещ амурский черный",null,162]
[1283,null,"Виттина короманделиана",null,169]
[1284,null,"Змееголов полосатый",null,164]
[1285,null,"Рыба-меч",null,200]
[1286,null,"Акула-молот гигантская",null,205]
[1287,null,"Скат колючий",null,118]
[1288,null,"Сом лесной",null,128]
[1289,null,"Кайман гладколобый",null,116]
[1290,null,"Голец арктический",null,159]
[1291,null,"Усач борнейский",null,205]
[1292,null,"Подлещик",null,211]
[1293,null,"Скалярия Леопольда",null,157]
[1294,null,"Робало",null,193]
[1295,null,"Змееголов черный",null,153]
[1296,null,"Креветка - хоббит",null,157]
[1297,null,"Бонито",null,189]
[1298,null,"Сейвал или кит ивасевый",null,211]
[1299,null,"Полосатик южный",null,174]
[1300,null,"Полосатик Брайда",null,220]
[1301,null,"Спинорог крупнопятнистый",null,135]
[1302,null,"Лещ",null,296]
[1303,null,"Полурыл лесной",null,339]
[1304,null,"Группер палевый",null,282]
[1305,null,"Кашалот",null,339]
[1306,null,"Каранкс желтоперый",null,304]
[1307,null,"Голомянка",null,328]
[1308,null,"Ленок",null,266]
[1309,null,"Акула суповая",null,328]
[1310,null,"Желтокрылка",null,232]
[1311,null,"Бычок-цуцик",null,342]
[1312,null,"Селар",null,231]
[1313,null,"Акула тигровая",null,232]
[1314,null,"Акула гренландская",null,339]
[1315,null,"Усач жесткогубый",null,307]
[1316,null,"Гринда обыкновенная",null,238]
[1317,null,"Рувета",null,328]
[1318,null,"Барабулька мелкозубая",null,240]
[1319,null,"Акула желтая",null,297]
[1320,null,"Омуль селенгинский",null,395]
[1321,null,"Бычок-кнут",null,390]
[1322,null,"Полосатик малый",null,458]
[1323,null,"Лаврак",null,348]
[1324,null,"Макрогнатус зебровый",null,402]
[1325,null,"Кераи",null,345]
[1326,null,"Вьюн серополосый",null,411]
[1327,null,"Красноперка",null,423]
[1328,null,"Луциан зеленый",null,358]
[1329,null,"Змееголов карликовый",null,422]
[1330,null,"Щучка азиатская",null,448]
[1331,null,"Кавалла островная",null,427]
[1332,null,"Махсир обыкновенный",null,347]
[1333,null,"Белуха",null,520]
[1334,null,"Карп чешуйчатый",null,531]
[1335,null,"Усач Ваандерса",null,469]
[1336,null,"Бутылконос плоскоголовый",null,463]
[1337,null,"Карась золотой",null,618]
[1338,null,"Усач краснохвостый",null,578]
[1339,null,"Расбора обыкновенная",null,801]
[1340,null,"Карась серебряный",null,746]
[1341,null,"Окунь",null,731]
[1342,null,"Анабас",null,725]
[1343,null,"Ножезуб полосатый",null,718]
[1344,null,"Усач Бэнкси",null,752]
[1345,null,"Сардинелла желтополосая",null,898]
[1346,null,"Луциан кашмирский",null,841]
[1347,null,"Щука обыкновенная",null,829]
[1348,null,"Пагр австралийский",null,812]
[1349,null,"Барракуда большая",null,1020]
[1350,null,"Скат гитарный",null,1046]
[1351,null,"Флагохвост гавайский",null,1130]
[1352,null,"Сом лягушковый",null,1236]
[1353,null,"Плотва",null,1286]
[1354,null,"Змееголов пятнистый",null,1688]
[1355,null,"Змееголов глазчатый",null,2165]
[1356,null,"Финвал",null,22845]
[]
[]
[]
[" - иконкой отмечена рыба с повышенной ценой."]
["Главная »"]
["Цены на рыбу"]
[]
["Играй в мобильную версию Русской рыбалки Приложение доступно для Android"]
[]
["Подробнее о мобильной версии "]
[]
["Русская рыбалка"]
[]
["Загрузить игру"]
["Тарифы и оплата"]
["Обои на рабочий стол"]
["Новости"]
["Регулярные турниры"]
["Экспедиции"]
["Контакты"]
[]
["Рейтинги"]
[]
["Рейтинги игроков"]
["Таблица рекордов"]
["Командный турнирный рейтинг"]
["Командный дуэльный рейтинг"]
["Победители прошлого месяца"]
["Победители прошлого месяца (дуэли)"]
[]
["Справочник"]
[]
["Статистика сервера"]
["Цены на рыбу"]
["Список рыбы"]
["Список предметов"]
["Список водоемов"]
["Вопросы и ответы"]
["Форум"]
[]
["Мобильная версия"]
[]
["Загрузить игру МРР"]
["Помощь и советы МРР"]
["Таблица рекордов МРР"]
["Цены на рыбу МРР"]
["Карта сервера МРР"]
["Расписание турниров МРР"]
["Рейтинг команд МРР"]
[]
["Правила пользования и Тариф"]
["Лицензионный договор"]
["Регистрация"]
["Забыли пароль?"]
[]
["© ООО «Русская рыбалка». 2006-2018. Все права защищены."]

{"sheet":"Вычисления","index":3,"n_rows":56,"n_cols":5,"rows_kept":56,"cut":false,"hidden":true,"merged":[]}
[]
[null,null,4291,904,{"$f":"VLOOKUP(MAX(Table_0[Место:]),'Выгрузка с сайта'!$A:$E,5,0)","v":22845}]
[null,null,179,278,{"$f":"VLOOKUP($A$5,'Выгрузка с сайта'!$C:$E,3,0)","v":22845}]
[null,"х",{"$f":" 1 - C3/C2","v":0.95828478210207413},{"$f":" 1 - D3/D2","v":0.69247787610619471},{"$f":" 1 - E3/E2","v":0}]
["Финвал","у",0.9036766383223076,0.71277011049343675,{"$f":"E7*E4+E6","v":0.21542205841613671}]
[null,"b",{"$f":"C5-C7*C4","v":0.21542205841613671},{"$f":"D5-D7*D4","v":0.21542205841613671},{"$f":"D6","v":0.21542205841613671}]
[null,"a",{"$f":"($C$5-$D$5)/($C$4-$D$4)","v":0.71821507839916809},{"$f":"($C$5-$D$5)/($C$4-$D$4)","v":0.71821507839916809},{"$f":"D7","v":0.71821507839916809}]
[]
[null,null,4282,4915,{"$f":"VLOOKUP(MAX(Table_0[Место:]),'Выгрузка с сайта'!$A:$E,5,0)","v":22845}]
[null,null,30,2819,{"$f":"VLOOKUP($A$12,'Выгрузка с сайта'!$C:$E,3,0)","v":54}]
[null,"х",{"$f":" 1 - C10/C9","v":0.99299392807099485},{"$f":" 1 - D10/D9","v":0.42644964394710072},{"$f":" 1 - E10/E9","v":0.99763624425476038}]
["Кит Горбатый","у",1.0918462662952506,0.61343206646451676,{"$f":"E14*E11+E13","v":1.0957664364296154}]
[null,"b",{"$f":"C12-C14*C11","v":0.25331976651862631},{"$f":"D12-D14*D11","v":0.25331976651862631},{"$f":"D13","v":0.25331976651862631}]
[null,"a",{"$f":"($C$12-$D$12)/($C$11-$D$11)","v":0.84444272625670402},{"$f":"($C$12-$D$12)/($C$11-$D$11)","v":0.84444272625670402},{"$f":"D14","v":0.84444272625670402}]
[]
[null,1289,12730,4915,{"$f":"VLOOKUP(MAX(Table_0[Место:]),'Выгрузка с сайта'!$A:$E,5,0)","v":22845}]
[null,null,58,1143,{"$f":"VLOOKUP($A$19,'Выгрузка с сайта'!$C:$E,3,0)","v":7}]
[null,"х",{"$f":" 1 - C17/C16","v":0.99544383346425769},{"$f":" 1 - D17/D16","v":0.76744659206510679},{"$f":" 1 - E17/E16","v":0.99969358721820967}]
["Кит синий северный","у",1.4393780101620015,1.1860464077026547,{"$f":"E21*E18+E20","v":1.4440999836470292}]
[null,"b",{"$f":"C19-C21*C18","v":0.3333234809833221},{"$f":"D19-D21*D18","v":0.33332348098332198},{"$f":"D20","v":0.33332348098332198}]
[null,"a",{"$f":"($C$19-$D$19)/($C$18-$D$18)","v":1.1111169631032662},{"$f":"($C$19-$D$19)/($C$18-$D$18)","v":1.1111169631032662},{"$f":"D21","v":1.1111169631032662}]
[]
[null,null,4282,4915,{"$f":"VLOOKUP(MAX(Table_0[Место:]),'Выгрузка с сайта'!$A:$E,5,0)","v":22845}]
[null,null,151,652,{"$f":"VLOOKUP($A$26,'Выгрузка с сайта'!$C:$E,3,0)","v":339}]
[null,"х",{"$f":" 1 - C24/C23","v":0.9647361046240075},{"$f":" 1 - D24/D23","v":0.8673448626653103},{"$f":" 1 - E24/E23","v":0.9851608667104399}]
["Кашалот","у",1.0199457510417711,0.94140077880703943,{"$f":"E28*E25+E27","v":1.0364180984388829}]
[null,"b",{"$f":"C26-C28*C25","v":0.24189662642262444},{"$f":"D26-D28*D25","v":0.24189662642262444},{"$f":"D27","v":0.24189662642262444}]
[null,"a",{"$f":"($C$26-$D$26)/($C$25-$D$25)","v":0.8064890708349518},{"$f":"($C$26-$D$26)/($C$25-$D$25)","v":0.8064890708349518},{"$f":"D28","v":0.8064890708349518}]
[]
[null,null,12730,4915,{"$f":"VLOOKUP(MAX(Table_0[Место:]),'Выгрузка с сайта'!$A:$E,5,0)","v":22845}]
[null,null,52,455,{"$f":"VLOOKUP($A$33,'Выгрузка с сайта'!$C:$E,3,0)","v":28}]
[null,"х",{"$f":" 1 - C31/C30","v":0.99591516103692068},{"$f":" 1 - D31/D30","v":0.90742624618514756},{"$f":" 1 - E31/E30","v":0.99877434887283867}]
["Кит горбатый-альбинос","у",1.72785708885921,1.6098661823686109,{"$f":"E35*E32+E34","v":1.7316695230511308}]
[null,"b",{"$f":"C33-C35*C32","v":0.39990620557269629},{"$f":"D33-D35*D32","v":0.39990620557269629},{"$f":"D34","v":0.39990620557269629}]
[null,"a",{"$f":"($C$33-$D$33)/($C$32-$D$32)","v":1.3333975977470673},{"$f":"($C$33-$D$33)/($C$32-$D$32)","v":1.3333975977470673},{"$f":"D35","v":1.3333975977470673}]
[]
[null,null,12730,4915,{"$f":"VLOOKUP(MAX(Table_0[Место:]),'Выгрузка с сайта'!$A:$E,5,0)","v":22845}]
[null,null,13,16,{"$f":"VLOOKUP($A$40,'Выгрузка с сайта'!$C:$E,3,0)","v":8}]
[null,"х",{"$f":" 1 - C38/C37","v":0.9989787902592302},{"$f":" 1 - D38/D37","v":0.99674465920651067},{"$f":" 1 - E38/E37","v":0.99964981396366814}]
["Кит серый","у",0.952566527000136,0.95092123799865036,{"$f":"E42*E39+E41","v":0.95306069135065785}]
[null,"b",{"$f":"C40-C42*C39","v":0.21688505731632424},{"$f":"D40-D42*D39","v":0.21688505731632424},{"$f":"D41","v":0.21688505731632424}]
[null,"a",{"$f":"($C$40-$D$40)/($C$39-$D$39)","v":0.73643352277069463},{"$f":"($C$40-$D$40)/($C$39-$D$39)","v":0.73643352277069463},{"$f":"D42","v":0.73643352277069463}]
[]
[null,null,12730,4915,{"$f":"VLOOKUP(MAX(Table_0[Место:]),'Выгрузка с сайта'!$A:$E,5,0)","v":22845}]
[null,null,23,303,{"$f":"VLOOKUP($A$47,'Выгрузка с сайта'!$C:$E,3,0)","v":0}]
[null,"х",{"$f":" 1 - C45/C44","v":0.99819324430479184},{"$f":" 1 - D45/D44","v":0.93835198372329609},{"$f":" 1 - E45/E44","v":1}]
["Кит японский","у",2.1636521239056639,2.0639128574312569,{"$f":"E49*E46+E48","v":2.1666634991004274}]
[null,"b",{"$f":"C47-C49*C46","v":0.49993279347674613},{"$f":"D47-D49*D46","v":0.49993279347674613},{"$f":"D48","v":0.49993279347674613}]
[null,"a",{"$f":"($C$47-$D$47)/($C$46-$D$46)","v":1.6667307056236815},{"$f":"($C$47-$D$47)/($C$46-$D$46)","v":1.6667307056236815},{"$f":"D49","v":1.6667307056236815}]
[]
[null,null,12730,4915,{"$f":"VLOOKUP(MAX(Table_0[Место:]),'Выгрузка с сайта'!$A:$E,5,0)","v":22845}]
[null,null,199,117,{"$f":"VLOOKUP($A$54,'Выгрузка с сайта'!$C:$E,3,0)","v":211}]
[null,"х",{"$f":" 1 - C52/C51","v":0.98436763550667716},{"$f":" 1 - D52/D51","v":0.97619532044760937},{"$f":" 1 - E52/E51","v":0.99076384329174871}]
["Сейвал или кит ивасевый","у",0.61007123665853236,0.60618136174091253,{"$f":"E56*E53+E55","v":0.61311571647253904}]
[null,"b",{"$f":"C54-C56*C53","v":0.14152995461073287},{"$f":"D54-D56*D53","v":0.14152995461073287},{"$f":"D55","v":0.14152995461073287}]
[null,"a",{"$f":"($C$54-$D$54)/($C$53-$D$53)","v":0.47598200626194936},{"$f":"($C$54-$D$54)/($C$53-$D$53)","v":0.47598200626194936},{"$f":"D56","v":0.47598200626194936}]